Workbook

Sheet Input
B7: Development of BGS-FP Cost and Bid Factors for 2017/18 BGS Filing
B8: Adjusted to Billing Time Periods
E9: Based on average of year 2013,2014 & 2015 Load Profile Information
A10: Table #1 | B10: % Usage During PJM On-Peak Period | E10: On-Peak periods defined as the 16 hr PJM Trading period, adj for NERC holidays
C11: Profile Meter Data | D11: Profile Meter Data | E11: Profile Meter Data | F11: Profile Meter Data | G11: Profile Meter Data | H11: Profile Meter Data | I11: --- Other Analysis --- | K11: Profile Meter Data | L11: Profile Meter Data
B12: (data rounded to nearest .01%) | C12: RS | D12: RHS | E12: RLM | F12: WH | G12: WHS | H12: HS | I12: PSAL | J12: BPL | K12: GLP | L12: LPL-S
B14: January | C14: 0.5023 | D14: 0.4913 | E14: 0.5087 | F14: 0.4513 | G14: 0.4513 | H14: 0.4933 | I14: 0.314 | J14: 0.314 | K14: 0.576 | L14: 0.5647
B15: February | C15: 0.4977 | D15: 0.486 | E15: 0.5067 | F15: 0.4457 | G15: 0.4457 | H15: 0.483 | I15: 0.2943 | J15: 0.2943 | K15: 0.5733 | L15: 0.5643
B16: March | C16: 0.4793 | D16: 0.4807 | E16: 0.486 | F16: 0.452 | G16: 0.452 | H16: 0.471 | I16: 0.2437 | J16: 0.2437 | K16: 0.563 | L16: 0.5533
B17: April | C17: 0.5217 | D17: 0.5363 | E17: 0.523 | F17: 0.4877 | G17: 0.4877 | H17: 0.5273 | I17: 0.2333 | J17: 0.2333 | K17: 0.6037 | L17: 0.5963
B18: May | C18: 0.5017 | D18: 0.515 | E18: 0.512 | F18: 0.4387 | G18: 0.4387 | H18: 0.5877 | I18: 0.2083 | J18: 0.2083 | K18: 0.5857 | L18: 0.5773
B19: June | C19: 0.5167 | D19: 0.53 | E19: 0.5327 | F19: 0.4433 | G19: 0.4433 | H19: 0.6357 | I19: 0.1973 | J19: 0.1973 | K19: 0.594 | L19: 0.5787
B20: July | C20: 0.5437 | D20: 0.5563 | E20: 0.563 | F20: 0.4713 | G20: 0.4713 | H20: 0.662 | I20: 0.2043 | J20: 0.2043 | K20: 0.6127 | L20: 0.59
B21: August | C21: 0.513 | D21: 0.5277 | E21: 0.5347 | F21: 0.4853 | G21: 0.4853 | H21: 0.6427 | I21: 0.2087 | J21: 0.2087 | K21: 0.587 | L21: 0.5657
B22: September | C22: 0.5067 | D22: 0.53 | E22: 0.5263 | F22: 0.4893 | G22: 0.4893 | H22: 0.639 | I22: 0.2367 | J22: 0.2367 | K22: 0.597 | L22: 0.576
B23: October | C23: 0.5187 | D23: 0.5313 | E23: 0.5307 | F23: 0.5143 | G23: 0.5143 | H23: 0.5873 | I23: 0.2777 | J23: 0.2777 | K23: 0.612 | L23: 0.596
B24: November | C24: 0.4663 | D24: 0.4597 | E24: 0.4773 | F24: 0.412 | G24: 0.412 | H24: 0.4713 | I24: 0.2997 | J24: 0.2997 | K24: 0.5523 | L24: 0.5377
B25: December | C25: 0.5067 | D25: 0.506 | E25: 0.5233 | F25: 0.4563 | G25: 0.4563 | H25: 0.5073 | I25: 0.323 | J25: 0.323 | K25: 0.5807 | L25: 0.562
E27: Based on average of year 2013, 2014 & 2015 Load Profile Information
A28: Table #2 | B28: % Usage During PSE&G On-Peak Billing Period | E28: On-Peak periods as defined in specified rate schedule (average of %s for 2013, 2014 & 2015)
C29: Profile Meter Data | D29: Profile Meter Data
B30: (data rounded to nearest .01%) | C30: RLM | D30: LPL-S
B32: January | C32: 0.4314 | D32: 0.4825
B33: February | C33: 0.4263 | D33: 0.4854
B34: March | C34: 0.419 | D34: 0.4839
B35: April | C35: 0.4251 | D35: 0.4889
B36: May | C36: 0.4423 | D36: 0.5056
B37: June | C37: 0.4648 | D37: 0.5144
B38: July | C38: 0.4827 | D38: 0.5108
B39: August | C39: 0.482 | D39: 0.51
B40: September | C40: 0.4818 | D40: 0.5088
B41: October | C41: 0.4583 | D41: 0.5149
B42: November | C42: 0.4353 | D42: 0.5074
B43: December | C43: 0.431 | D43: 0.4901
A46: Table #3 | B46: Class Usage @ customer
B47: calendar month sales forecasted for 2017, less % for LPL-Sec > 500 kW Peak Load Share
B48: in MWh | C48: RS | D48: RHS | E48: RLM | F48: WH | G48: WHS | H48: HS | I48: PSAL | J48: BPL | K48: GLP | L48: LPL-S
B50: January | C50: 1047801.564 | D50: 20621.7321 | E50: 17929.80116 | F50: 131 | G50: 3 | H50: 2444.08423 | I50: 16433 | J50: 31380 | K50: 539710.9945 | L50: 620314.0713
B51: February | C51: 892336.6228 | D51: 17413.41334 | E51: 14526.84753 | F51: 139 | G51: 3 | H51: 2058.392607 | I51: 14486 | J51: 29833 | K51: 501623.5427 | L51: 604405.1761
B52: March | C52: 870769.9022 | D52: 15370.1751 | E52: 15198.67928 | F52: 118 | G52: 3 | H52: 1949.839741 | I52: 13475 | J52: 26173 | K52: 520385.01 | L52: 619628.3824
B53: April | C53: 777804.3221 | D53: 9283.933548 | E53: 14330.23657 | F53: 129 | G53: 3 | H53: 1153.785389 | I53: 12345 | J53: 23503 | K53: 503200.942 | L53: 554546.5385
B54: May | C54: 805417.1665 | D54: 6710.322833 | E54: 14698.29974 | F54: 119 | G54: 2 | H54: 629.113202 | I54: 10458 | J54: 21900 | K54: 508931.4014 | L54: 629428.59
B55: June | C55: 1186987.69 | D55: 7341.1666 | E55: 22064.2221 | F55: 93 | G55: 3 | H55: 869.2453 | I55: 10264 | J55: 18101 | K55: 551087.4389 | L55: 608788.8969
B56: July | C56: 1580533.595 | D56: 8619.277327 | E56: 29515.87058 | F56: 79 | G56: 1 | H56: 864.3110788 | I56: 10333 | J56: 18677 | K56: 652433.3145 | L56: 705867.6046
B57: August | C57: 1471181.683 | D57: 8239.611783 | E57: 25889.28362 | F57: 78 | G57: 2 | H57: 795.2319821 | I57: 11212 | J57: 20782 | K57: 634898.3523 | L57: 701307.415
B58: September | C58: 1018291.769 | D58: 6113.291518 | E58: 19569.77882 | F58: 78 | G58: 1 | H58: 777.1398378 | I58: 12484 | J58: 21773 | K58: 538797.2076 | L58: 607362.169
B59: October | C59: 782675.2522 | D59: 7733.391056 | E59: 14777.5032 | F59: 98 | G59: 2 | H59: 897.2058868 | I59: 14901 | J59: 24425 | K59: 491590.5683 | L59: 593086.4247
B60: November | C60: 787082.4622 | D60: 10433.55695 | E60: 12940.91459 | F60: 106 | G60: 2 | H60: 1052.633854 | I60: 15525 | J60: 28254 | K60: 459447.1989 | L60: 554753.6127
B61: December | C61: 980713.6184 | D61: 15175.99502 | E61: 16804.18014 | F61: 115 | G61: 2 | H61: 1705.595792 | I61: 17052 | J61: 31467 | K61: 514456.3603 | L61: 576323.1859
B64: LPL-S > 500 kW PLS | C64: % of | D64: % of
C65: kWh | D65: Gen Obl
C66: 0.3887591935 | D66: 0.3579282364
A70: Table #4 | B70: Forwards Prices - Energy Only @ bulk system | E70: Table #5 | F70: Zone to Western Hub Basis Differential
B71: in $/MWh, not including PJM losses | F71: Off/On Pk
C72: On-Peak | F72: LMP ratio
B73: January | C73: 52.53 | E73: Summer | F73: 0.6416216318
B74: February | C74: 49.85 | E74: Winter | F74: 0.6996285452
B75: March | C75: 40.31
B76: April | C76: 33.73
B77: May | C77: 33.63
B78: June | C78: 37.35 | F78: Basis
B79: July | C79: 45.53 | F79: On-Peak | G79: Off-Peak
B80: August | C80: 41.6 | E80: Summer | F80: 0.9635989312 | G80: 0.9133707489
B81: September | C81: 35.39 | E81: Winter | F81: 1.096261513 | G81: 1.078654763
B82: October | C82: 33.72
B83: November | C83: 34.02
B84: December | C84: 38
A88: Table #6 | B88: Loss Type | C88: Percentage | D88: Source
B89: Delivery Losses | C89: 0.075377 | D89: Tariff (Result of 2000 Loss Study)
B90: EHV Losses | C90: 0.0055 | D90: PJM
B91: Marginal Loss Deration Factor | C91: 0.01217556523 | D91: NERA
A96: Table #10 | B96: Generation & Transmission Obligations and Costs and Other Adjustments
B97: obligations - Peak Load shares eff 6/1/17, scaling factors eff 1/1/17, Transmission Loads eff 1/1/17; costs are market estimates
B98: in MW
C100: RS | D100: RHS | E100: RLM | F100: WH | G100: WHS | H100: HS | I100: PSAL | J100: BPL | K100: GLP | L100: LPL-S
B101: Generation Peak Load Share | C101: 3620.243859 | D101: 24.05457965 | E101: 69.43465747 | F101: 0 | G101: 0 | H101: 2.785340347 | I101: 0 | J101: 0 | K101: 1790.210282 | L101: 1402.650002
B102: Tranmsission Obligation | C102: 3892.643385 | D102: 25.48041293 | E102: 73.12374372 | F102: 0 | G102: 0 | H102: 2.828513823 | I102: 0 | J102: 0 | K102: 1779.280575 | L102: 1379.101995
B104: Final Zonal RPM Scaling Factor | C104: 1.062463382
B105: PJM June 1, 2016 (through May 31, 2017) Forecast Pool Requirement | C105: 1.0952
B107: NITS Rate | D107: Tranches | E107: NITS Rate
C108: 2015 | D108: 29 | E108: 72688.29
C109: 2016 | D109: 28 | E109: 82516.44
C110: 2017 | D110: 28 | E110: 91224.18
E112: Base Capacity
B113: Generation Capacity cost | C113: summer = | E113: 178.9594853 | F113: $/MW/day
C114: winter = | E114: 178.9594853 | F114: $/MW/day
C115: Incremental RPM Capacity | E115: 31.1 | F115: $/MW/day
C118: RS | D118: RHS
B119: Required summer inversion = | C119: 0.8652 | D119: 1.1569 | E119: ¢/kWh | F119: (same as 2003/2004 BGS blocking inversion)
A122: Table #11 | B122: Ancillary Services & Renewable Power Cost
B123: Ancillary Services | D123: 2 | E123: per MWh @ bulk system
B124: Renewable Power Cost | D124: 8.57 | E124: per MWh @ bulk system
A129: Bill Impacts | B129: BGS - CIEP BRA Clearing Price ($ per MW/Day)
B130: Annual Obligation Clearing Price | D130: 335.33 | E130: per MWh
A135: auction results and rates | B135: Specific BGS-FP Auction >> | C135: remaining portion of 36 month bid - 2015 auction | D135: remaining portion of 36 month bid - 2016 auction | E135: 36 month bid - 2017 auction
B136: Winning Bid - in $/MWh | C136: 99.54 | D136: 96.38 | E136: 96.38
B137: # of Tranches for Bid | C137: 29 | D137: 28 | E137: 28
B138: Use Estimated amount in cell e134 | E138: Yes
B139: Payment Factors
B140: Summer | C140: 1 | D140: 1
B141: Winter | C141: 1 | D141: 1

Sheet bid_factors
B2: ="Development of BGS-RSCP Cost and Bid Factors for "&(Input!D2)&"/"&(Input!D2+1)&" BGS Filing" -> Development of BGS-RSCP Cost and Bid Factors for /1 BGS Filing
B3: Adjusted to Billing Time Periods
E4: =+Input!E9 -> Based on average of year 2013,2014 & 2015 Load Profile Information
A5: Table #1 | B5: % Usage During PJM On-Peak Period | E5: On-Peak periods defined as the 16 hr PJM Trading period, adj for NERC holidays | O5: % usage during Off-Peak period
C6: Profile Meter Data | D6: Profile Meter Data | E6: Profile Meter Data | F6: Profile Meter Data | G6: Profile Meter Data | H6: Profile Meter Data | I6: --- Other Analysis --- | K6: Profile Meter Data | L6: Profile Meter Data | O6: Profile Meter Data | P6: Profile Meter Data | Q6: Profile Meter Data | R6: Profile Meter Data | S6: Profile Meter Data | T6: Profile Meter Data | U6: -- Other Analysis -- | W6: Profile Meter Data | X6: Profile Meter Data
B7: (data rounded to nearest .01%) | C7: RS | D7: RHS | E7: RLM | F7: WH | G7: WHS | H7: HS | I7: PSAL | J7: BPL | K7: GLP | L7: LPL-S | O7: =+C7 -> RS | P7: =+D7 -> RHS | Q7: RLM | R7: WH | S7: WHS | T7: HS | U7: PSAL | V7: BPL | W7: GLP | X7: LPL-S
B9: January | C9: =Input!C14 -> 0.5023 | D9: =Input!D14 -> 0.4913 | E9: =Input!E14 -> 0.5087 | F9: =Input!F14 -> 0.4513 | G9: =Input!G14 -> 0.4513 | H9: =Input!H14 -> 0.4933 | I9: =Input!I14 -> 0.314 | J9: =Input!J14 -> 0.314 | K9: =Input!K14 -> 0.576 | L9: =Input!L14 -> 0.5647 | O9: =1-C9 -> 0.4977 | P9: 0.5087 | Q9: 0.4913 | R9: 0.5487 | S9: 0.5487 | T9: 0.5067 | U9: 0.686 | V9: 0.686 | W9: 0.424 | X9: 0.4353
B10: February | C10: =Input!C15 -> 0.4977 | D10: =Input!D15 -> 0.486 | E10: =Input!E15 -> 0.5067 | F10: =Input!F15 -> 0.4457 | G10: =Input!G15 -> 0.4457 | H10: =Input!H15 -> 0.483 | I10: =Input!I15 -> 0.2943 | J10: =Input!J15 -> 0.2943 | K10: =Input!K15 -> 0.5733 | L10: =Input!L15 -> 0.5643 | O10: =1-C10 -> 0.5023 | P10: =1-D10 -> 0.514 | Q10: =1-E10 -> 0.4933 | R10: =1-F10 -> 0.5543 | S10: =1-G10 -> 0.5543 | T10: =1-H10 -> 0.517 | U10: =1-I10 -> 0.7057 | V10: =1-J10 -> 0.7057 | W10: =1-K10 -> 0.4267 | X10: =1-L10 -> 0.4357
B11: March | C11: =Input!C16 -> 0.4793 | D11: =Input!D16 -> 0.4807 | E11: =Input!E16 -> 0.486 | F11: =Input!F16 -> 0.452 | G11: =Input!G16 -> 0.452 | H11: =Input!H16 -> 0.471 | I11: =Input!I16 -> 0.2437 | J11: =Input!J16 -> 0.2437 | K11: =Input!K16 -> 0.563 | L11: =Input!L16 -> 0.5533 | O11: 0.5207 | P11: 0.5193 | Q11: 0.514 | R11: 0.548 | S11: 0.548 | T11: 0.529 | U11: 0.7563 | V11: 0.7563 | W11: 0.437 | X11: 0.4467
B12: April | C12: =Input!C17 -> 0.5217 | D12: =Input!D17 -> 0.5363 | E12: =Input!E17 -> 0.523 | F12: =Input!F17 -> 0.4877 | G12: =Input!G17 -> 0.4877 | H12: =Input!H17 -> 0.5273 | I12: =Input!I17 -> 0.2333 | J12: =Input!J17 -> 0.2333 | K12: =Input!K17 -> 0.6037 | L12: =Input!L17 -> 0.5963 | O12: 0.4783 | P12: 0.4637 | Q12: 0.477 | R12: 0.5123 | S12: 0.5123 | T12: 0.4727 | U12: 0.7667 | V12: 0.7667 | W12: 0.3963 | X12: 0.4037
B13: May | C13: =Input!C18 -> 0.5017 | D13: =Input!D18 -> 0.515 | E13: =Input!E18 -> 0.512 | F13: =Input!F18 -> 0.4387 | G13: =Input!G18 -> 0.4387 | H13: =Input!H18 -> 0.5877 | I13: =Input!I18 -> 0.2083 | J13: =Input!J18 -> 0.2083 | K13: =Input!K18 -> 0.5857 | L13: =Input!L18 -> 0.5773 | O13: 0.4983 | P13: 0.485 | Q13: 0.488 | R13: 0.5613 | S13: 0.5613 | T13: 0.4123 | U13: 0.7917 | V13: 0.7917 | W13: 0.4143 | X13: 0.4227
B14: June | C14: =Input!C19 -> 0.5167 | D14: =Input!D19 -> 0.53 | E14: =Input!E19 -> 0.5327 | F14: =Input!F19 -> 0.4433 | G14: =Input!G19 -> 0.4433 | H14: =Input!H19 -> 0.6357 | I14: =Input!I19 -> 0.1973 | J14: =Input!J19 -> 0.1973 | K14: =Input!K19 -> 0.594 | L14: =Input!L19 -> 0.5787 | O14: 0.4833 | P14: 0.47 | Q14: 0.4673 | R14: 0.5567 | S14: 0.5567 | T14: 0.3643 | U14: 0.8027 | V14: 0.8027 | W14: 0.406 | X14: 0.4213
B15: July | C15: =Input!C20 -> 0.5437 | D15: =Input!D20 -> 0.5563 | E15: =Input!E20 -> 0.563 | F15: =Input!F20 -> 0.4713 | G15: =Input!G20 -> 0.4713 | H15: =Input!H20 -> 0.662 | I15: =Input!I20 -> 0.2043 | J15: =Input!J20 -> 0.2043 | K15: =Input!K20 -> 0.6127 | L15: =Input!L20 -> 0.59 | O15: 0.4563 | P15: 0.4437 | Q15: 0.437 | R15: 0.5287 | S15: 0.5287 | T15: 0.338 | U15: 0.7957 | V15: 0.7957 | W15: 0.3873 | X15: 0.41
B16: August | C16: =Input!C21 -> 0.513 | D16: =Input!D21 -> 0.5277 | E16: =Input!E21 -> 0.5347 | F16: =Input!F21 -> 0.4853 | G16: =Input!G21 -> 0.4853 | H16: =Input!H21 -> 0.6427 | I16: =Input!I21 -> 0.2087 | J16: =Input!J21 -> 0.2087 | K16: =Input!K21 -> 0.587 | L16: =Input!L21 -> 0.5657 | O16: 0.487 | P16: 0.4723 | Q16: 0.4653 | R16: 0.5147 | S16: 0.5147 | T16: 0.3573 | U16: 0.7913 | V16: 0.7913 | W16: 0.413 | X16: 0.4343
B17: September | C17: =Input!C22 -> 0.5067 | D17: =Input!D22 -> 0.53 | E17: =Input!E22 -> 0.5263 | F17: =Input!F22 -> 0.4893 | G17: =Input!G22 -> 0.4893 | H17: =Input!H22 -> 0.639 | I17: =Input!I22 -> 0.2367 | J17: =Input!J22 -> 0.2367 | K17: =Input!K22 -> 0.597 | L17: =Input!L22 -> 0.576 | O17: 0.4933 | P17: 0.47 | Q17: 0.4737 | R17: 0.5107 | S17: 0.5107 | T17: 0.361 | U17: 0.7633 | V17: 0.7633 | W17: 0.403 | X17: 0.424
B18: October | C18: =Input!C23 -> 0.5187 | D18: =Input!D23 -> 0.5313 | E18: =Input!E23 -> 0.5307 | F18: =Input!F23 -> 0.5143 | G18: =Input!G23 -> 0.5143 | H18: =Input!H23 -> 0.5873 | I18: =Input!I23 -> 0.2777 | J18: =Input!J23 -> 0.2777 | K18: =Input!K23 -> 0.612 | L18: =Input!L23 -> 0.596 | O18: 0.4813 | P18: 0.4687 | Q18: 0.4693 | R18: 0.4857 | S18: 0.4857 | T18: 0.4127 | U18: 0.7223 | V18: 0.7223 | W18: 0.388 | X18: 0.404
B19: November | C19: =Input!C24 -> 0.4663 | D19: =Input!D24 -> 0.4597 | E19: =Input!E24 -> 0.4773 | F19: =Input!F24 -> 0.412 | G19: =Input!G24 -> 0.412 | H19: =Input!H24 -> 0.4713 | I19: =Input!I24 -> 0.2997 | J19: =Input!J24 -> 0.2997 | K19: =Input!K24 -> 0.5523 | L19: =Input!L24 -> 0.5377 | O19: 0.5337 | P19: 0.5403 | Q19: 0.5227 | R19: 0.588 | S19: 0.588 | T19: 0.5287 | U19: 0.7003 | V19: 0.7003 | W19: 0.4477 | X19: 0.4623
B20: December | C20: =Input!C25 -> 0.5067 | D20: =Input!D25 -> 0.506 | E20: =Input!E25 -> 0.5233 | F20: =Input!F25 -> 0.4563 | G20: =Input!G25 -> 0.4563 | H20: =Input!H25 -> 0.5073 | I20: =Input!I25 -> 0.323 | J20: =Input!J25 -> 0.323 | K20: =Input!K25 -> 0.5807 | L20: =Input!L25 -> 0.562 | O20: 0.4933 | P20: 0.494 | Q20: 0.4767 | R20: 0.5437 | S20: 0.5437 | T20: 0.4927 | U20: 0.677 | V20: 0.677 | W20: 0.4193 | X20: 0.438
E22: =+Input!E9 -> Based on average of year 2013,2014 & 2015 Load Profile Information
A23: Table #2 | B23: % Usage During PSE&G On-Peak Billing Period | E23: On-Peak periods as defined in specified rate schedule (average of %s for 2013, 2014 & 2015)
C24: N/A | D24: N/A | E24: Profile Meter Data | F24: N/A | G24: N/A | H24: N/A | I24: N/A | J24: N/A | K24: N/A | L24: Profile Meter Data | O24: N/A | P24: N/A | Q24: Actual Billed Sales | R24: N/A | S24: N/A | T24: N/A | U24: N/A | V24: N/A | W24: N/A | X24: Actual Billed Sales
B25: (data rounded to nearest .01%) | C25: =+C7 -> RS | D25: =+D7 -> RHS | E25: RLM | F25: WH | G25: WHS | H25: HS | I25: PSAL | J25: BPL | K25: GLP | L25: LPL-S | O25: =+C7 -> RS | P25: =+D7 -> RHS | Q25: RLM | R25: WH | S25: WHS | T25: HS | U25: PSAL | V25: BPL | W25: GLP | X25: LPL-S
B27: January | C27: 0 | D27: 0 | E27: =Input!C32 -> 0.4314 | F27: 0 | G27: 0 | H27: 0 | I27: 0 | J27: 0 | K27: 0 | L27: =Input!D32 -> 0.4825 | Q27: =1-E27 -> 0.5686 | X27: =1-L27 -> 0.5175
B28: February | C28: 0 | D28: 0 | E28: =Input!C33 -> 0.4263 | F28: 0 | G28: 0 | H28: 0 | I28: 0 | J28: 0 | K28: 0 | L28: =Input!D33 -> 0.4854 | Q28: 0.5737 | X28: 0.5146
B29: March | C29: 0 | D29: 0 | E29: =Input!C34 -> 0.419 | F29: 0 | G29: 0 | H29: 0 | I29: 0 | J29: 0 | K29: 0 | L29: =Input!D34 -> 0.4839 | Q29: 0.581 | X29: 0.5161
B30: April | C30: 0 | D30: 0 | E30: =Input!C35 -> 0.4251 | F30: 0 | G30: 0 | H30: 0 | I30: 0 | J30: 0 | K30: 0 | L30: =Input!D35 -> 0.4889 | Q30: 0.5749 | X30: 0.5111
B31: May | C31: 0 | D31: 0 | E31: =Input!C36 -> 0.4423 | F31: 0 | G31: 0 | H31: 0 | I31: 0 | J31: 0 | K31: 0 | L31: =Input!D36 -> 0.5056 | Q31: 0.5577 | X31: 0.4944
B32: June | C32: 0 | D32: 0 | E32: =Input!C37 -> 0.4648 | F32: 0 | G32: 0 | H32: 0 | I32: 0 | J32: 0 | K32: 0 | L32: =Input!D37 -> 0.5144 | Q32: 0.5352 | X32: 0.4856
B33: July | C33: 0 | D33: 0 | E33: =Input!C38 -> 0.4827 | F33: 0 | G33: 0 | H33: 0 | I33: 0 | J33: 0 | K33: 0 | L33: =Input!D38 -> 0.5108 | Q33: 0.5173 | X33: 0.4892
B34: August | C34: 0 | D34: 0 | E34: =Input!C39 -> 0.482 | F34: 0 | G34: 0 | H34: 0 | I34: 0 | J34: 0 | K34: 0 | L34: =Input!D39 -> 0.51 | Q34: 0.518 | X34: 0.49
B35: September | C35: 0 | D35: 0 | E35: =Input!C40 -> 0.4818 | F35: 0 | G35: 0 | H35: 0 | I35: 0 | J35: 0 | K35: 0 | L35: =Input!D40 -> 0.5088 | Q35: 0.5182 | X35: 0.4912
B36: October | C36: 0 | D36: 0 | E36: =Input!C41 -> 0.4583 | F36: 0 | G36: 0 | H36: 0 | I36: 0 | J36: 0 | K36: 0 | L36: =Input!D41 -> 0.5149 | Q36: 0.5417 | X36: 0.4851
B37: November | C37: 0 | D37: 0 | E37: =Input!C42 -> 0.4353 | F37: 0 | G37: 0 | H37: 0 | I37: 0 | J37: 0 | K37: 0 | L37: =Input!D42 -> 0.5074 | Q37: 0.5647 | X37: 0.4926
B38: December | C38: 0 | D38: 0 | E38: =Input!C43 -> 0.431 | F38: 0 | G38: 0 | H38: 0 | I38: 0 | J38: 0 | K38: 0 | L38: =Input!D43 -> 0.4901 | Q38: 0.569 | X38: 0.5099
A41: Table #3 | B41: Class Usage @ customer | O41: Usage by season - PSE&G periods
B42: ="calendar month sales forecasted for "&(Input!D2)&", less % for LPL-Sec > 500 kW Peak Load Share" -> calendar month sales forecasted for , less % for LPL-Sec > 500 kW Peak Load Share | L42: < 500 kW | AB42: Total | AD42: LPL-S > 500 kW PLS
B43: in MWh | C43: =+C7 -> RS | D43: =+D7 -> RHS | E43: RLM | F43: WH | G43: WHS | H43: HS | I43: PSAL | J43: BPL | K43: GLP | L43: LPL-S | O43: =+C7 -> RS | P43: =+D7 -> RHS | Q43: RLM | R43: WH | S43: WHS | T43: HS | U43: PSAL | V43: BPL | W43: GLP | X43: LPL-S | Z43: % | AB43: LPL-S | AD43: % of | AE43: % of | AF43: % of
AD44: kWh | AE44: Gen Obl | AF44: Trans Obl
B45: January | C45: =Input!C50 -> 1047801.564 | D45: =Input!D50 -> 20621.7321 | E45: =Input!E50 -> 17929.80116 | F45: =Input!F50 -> 131 | G45: =Input!G50 -> 3 | H45: =Input!H50 -> 2444.08423 | I45: =Input!I50 -> 16433 | J45: =Input!J50 -> 31380 | K45: =Input!K50 -> 539710.9945 | L45: =AB45*$M$45 -> 379161.2732 | M45: =(1-AD45) -> 0.6112408065 | N45: winter MWh = | O45: =SUM(C45:C49,C54:C56) -> 6944600.911 | P45: =SUM(D45:D49,D54:D56) -> 102742.52 | Q45: 121206.4622 | R45: 955 | S45: 20 | T45: 11890.6507 | U45: 114675 | V45: 216935 | W45: 4039346.018 | X45: 2904913.364 | Y45: =SUM(O45:X45) -> 14457284.93 | Z45: =+Y45/(Y45+Y49) -> 0.6036545626 | AB45: =Input!L50 -> 620314.0713 | AD45: =Input!C66 -> 0.3887591935 | AE45: =Input!D66 -> 0.3579282364 | AF45: =AE45 -> 0.3579282364
B46: February | C46: =Input!C51 -> 892336.6228 | D46: =Input!D51 -> 17413.41334 | E46: =Input!E51 -> 14526.84753 | F46: =Input!F51 -> 139 | G46: =Input!G51 -> 3 | H46: =Input!H51 -> 2058.392607 | I46: =Input!I51 -> 14486 | J46: =Input!J51 -> 29833 | K46: =Input!K51 -> 501623.5427 | L46: =AB46*$M$45 -> 369437.1073 | N46: on-peak | Q46: =SUMPRODUCT(E27:E31,E45:E49)+SUMPRODUCT(E36:E38,E54:E56) -> 52537.11096 | X46: =SUMPRODUCT(L27:L31,L45:L49)+SUMPRODUCT(L36:L38,L54:L56) -> 1437145.142 | AB46: =Input!L51 -> 604405.1761
B47: March | C47: =Input!C52 -> 870769.9022 | D47: =Input!D52 -> 15370.1751 | E47: =Input!E52 -> 15198.67928 | F47: =Input!F52 -> 118 | G47: =Input!G52 -> 3 | H47: =Input!H52 -> 1949.839741 | I47: =Input!I52 -> 13475 | J47: =Input!J52 -> 26173 | K47: =Input!K52 -> 520385.01 | L47: 378742.1522 | N47: off-peak | O47: =+O45-O46 -> 6944600.911 | P47: =+P45-P46 -> 102742.52 | Q47: =+Q45-Q46 -> 68669.35125 | R47: =+R45-R46 -> 955 | X47: =+X45-X46 -> 1467768.222 | AB47: =Input!L52 -> 619628.3824
B48: April | C48: =Input!C53 -> 777804.3221 | D48: =Input!D53 -> 9283.933548 | E48: =Input!E53 -> 14330.23657 | F48: =Input!F53 -> 129 | G48: =Input!G53 -> 3 | H48: =Input!H53 -> 1153.785389 | I48: =Input!I53 -> 12345 | J48: =Input!J53 -> 23503 | K48: =Input!K53 -> 503200.942 | L48: 338961.4734 | AB48: =Input!L53 -> 554546.5385
B49: May | C49: =Input!C54 -> 805417.1665 | D49: =Input!D54 -> 6710.322833 | E49: =Input!E54 -> 14698.29974 | F49: =Input!F54 -> 119 | G49: =Input!G54 -> 2 | H49: =Input!H54 -> 629.113202 | I49: =Input!I54 -> 10458 | J49: =Input!J54 -> 21900 | K49: =Input!K54 -> 508931.4014 | L49: 384732.439 | N49: summer MWh = | O49: =SUM(C50:C53) -> 5256994.737 | P49: =+SUM(D50:D53) -> 30313.34723 | Q49: 97039.15512 | R49: 328 | S49: 7 | T49: 3305.928199 | U49: 44293 | V49: 79333 | W49: 2377216.313 | X49: 1603483.952 | Y49: =SUM(O49:X49) -> 9492314.433 | Z49: =1-Z45 -> 0.3963454374 | AB49: =Input!L54 -> 629428.59
B50: June | C50: =Input!C55 -> 1186987.69 | D50: =Input!D55 -> 7341.1666 | E50: =Input!E55 -> 22064.2221 | F50: =Input!F55 -> 93 | G50: =Input!G55 -> 3 | H50: =Input!H55 -> 869.2453 | I50: =Input!I55 -> 10264 | J50: =Input!J55 -> 18101 | K50: =Input!K55 -> 551087.4389 | L50: 372116.6163 | N50: on-peak | Q50: =+SUMPRODUCT(E32:E35,E50:E53) -> 46410.1153 | X50: =+SUMPRODUCT(L32:L35,L50:L53) -> 819313.7994 | AB50: =Input!L55 -> 608788.8969
B51: July | C51: =Input!C56 -> 1580533.595 | D51: =Input!D56 -> 8619.277327 | E51: =Input!E56 -> 29515.87058 | F51: =Input!F56 -> 79 | G51: =Input!G56 -> 1 | H51: =Input!H56 -> 864.3110788 | I51: =Input!I56 -> 10333 | J51: =Input!J56 -> 18677 | K51: =Input!K56 -> 652433.3145 | L51: 431455.0839 | N51: off-peak | Q51: =+Q49-Q50 -> 50629.03982 | X51: =+X49-X50 -> 784170.1529 | AB51: =Input!L56 -> 705867.6046
B52: August | C52: =Input!C57 -> 1471181.683 | D52: =Input!D57 -> 8239.611783 | E52: =Input!E57 -> 25889.28362 | F52: =Input!F57 -> 78 | G52: =Input!G57 -> 2 | H52: =Input!H57 -> 795.2319821 | I52: =Input!I57 -> 11212 | J52: =Input!J57 -> 20782 | K52: =Input!K57 -> 634898.3523 | L52: 428667.7099 | AB52: =Input!L57 -> 701307.415
B53: September | C53: =Input!C58 -> 1018291.769 | D53: =Input!D58 -> 6113.291518 | E53: =Input!E58 -> 19569.77882 | F53: =Input!F58 -> 78 | G53: =Input!G58 -> 1 | H53: =Input!H58 -> 777.1398378 | I53: =Input!I58 -> 12484 | J53: =Input!J58 -> 21773 | K53: =Input!K58 -> 538797.2076 | L53: 371244.542 | N53: Block 1 | O53: =+O49*C163 -> 3401275.595 | P53: =+P49*D163 -> 19188.3488 | AB53: =Input!L58 -> 607362.169
B54: October | C54: =Input!C59 -> 782675.2522 | D54: =Input!D59 -> 7733.391056 | E54: =Input!E59 -> 14777.5032 | F54: =Input!F59 -> 98 | G54: =Input!G59 -> 2 | H54: =Input!H59 -> 897.2058868 | I54: =Input!I59 -> 14901 | J54: =Input!J59 -> 24425 | K54: =Input!K59 -> 491590.5683 | L54: 362518.6246 | N54: Block 2 | O54: =+O49-O53 -> 1855719.142 | P54: =+P49-P53 -> 11124.99843 | AB54: =Input!L59 -> 593086.4247
B55: November | C55: =Input!C60 -> 787082.4622 | D55: =Input!D60 -> 10433.55695 | E55: =Input!E60 -> 12940.91459 | F55: =Input!F60 -> 106 | G55: =Input!G60 -> 2 | H55: =Input!H60 -> 1052.633854 | I55: =Input!I60 -> 15525 | J55: =Input!J60 -> 28254 | K55: =Input!K60 -> 459447.1989 | L55: 339088.0456 | AB55: =Input!L60 -> 554753.6127
B56: December | C56: =Input!C61 -> 980713.6184 | D56: =Input!D61 -> 15175.99502 | E56: =Input!E61 -> 16804.18014 | F56: =Input!F61 -> 115 | G56: =Input!G61 -> 2 | H56: =Input!H61 -> 1705.595792 | I56: =Input!I61 -> 17052 | J56: =Input!J61 -> 31467 | K56: =Input!K61 -> 514456.3603 | L56: 352272.2489 | AB56: =Input!L61 -> 576323.1859
B57: Total | C57: =SUM(C45:C56) -> 12201595.65 | D57: =SUM(D45:D56) -> 133055.8672 | E57: =SUM(E45:E56) -> 218245.6173 | F57: 1283 | G57: 27 | H57: =SUM(H45:H56) -> 15196.5789 | I57: =SUM(I45:I56) -> 158968 | J57: =SUM(J45:J56) -> 296268 | K57: 6416562.331 | L57: =SUM(L45:L56) -> 4508397.316 | O57: Usage by season/period - PJM periods | AB57: =SUM(AB45:AB56) -> 7375812.067
O58: in MWhs
Y59: Total | Z59: %
A60: Table #4 | B60: Forwards Prices - Energy Only @ bulk system | G60: Table #5 | H60: Zone to Western Hub Basis Differential | N60: Winter
B61: in $/MWh, not including PJM losses | D61: Off/On Pk | E61: Resulting | N61: on-peak | O61: =SUMPRODUCT(C9:C13,C45:C49)+SUMPRODUCT(C18:C20,C54:C56) -> 3467562.78 | P61: =SUMPRODUCT(D9:D13,D45:D49)+SUMPRODUCT(D18:D20,D54:D56) -> 51001.71914 | Q61: 61701.19177 | R61: 436.0751 | S61: 9.1527 | T61: 5984.649861 | U61: 32064.1854 | V61: 60470.9392 | W61: 2346645.525 | X61: 1652738.273 | Y61: =SUM(O61:X61) -> 7678614.492 | Z61: =+Y61/(Y61+Y62) -> 0.5311242416
C62: On-Peak | D62: LMP ratio | E62: Off-Peak | H62: On-Peak | I62: Off-Peak | N62: off-peak | O62: =+O45-O61 -> 3477038.131 | P62: =+P45-P61 -> 51740.80082 | Q62: 59505.27044 | R62: 518.9249 | S62: 10.8473 | T62: 5906.000842 | U62: 82610.8146 | V62: 156464.0608 | W62: 1692700.493 | X62: 1252175.091 | Y62: =SUM(O62:X62) -> 6778670.434 | Z62: =1-Z61 -> 0.4688757584
B63: January | C63: =Input!C73 -> 52.53 | D63: =Input!F74 -> 0.6996285452 | E63: =ROUND(+C63*D63,3) -> 36.751 | H63: =Input!F81 -> 1.096261513 | I63: =Input!G81 -> 1.078654763 | J63: NYMEX Forwards (January 6, 2017) from NERA
B64: February | C64: =Input!C74 -> 49.85 | D64: =+$D$63 -> 0.6996285452 | E64: =ROUND(+C64*D64,3) -> 34.876 | H64: =+$H$63 -> 1.096261513 | I64: =+$I$63 -> 1.078654763 | N64: Summer
B65: March | C65: =Input!C75 -> 40.31 | D65: =+$D$63 -> 0.6996285452 | E65: =ROUND(+C65*D65,3) -> 28.202 | H65: =+$H$63 -> 1.096261513 | I65: =+$I$63 -> 1.078654763 | J65: Congestion Factors & On/Off Peak Ratios | N65: on-peak | O65: =SUMPRODUCT(C14:C17,C50:C53) -> 2743337.298 | P65: =SUMPRODUCT(D14:D17,D50:D53) -> 16273.80992 | Q65: 52513.6208 | R65: 154.4784 | S65: 3.2611 | T65: 2132.441123 | U65: 9431.0263 | V65: 16877.9109 | W65: 1421439.096 | X65: 926236.5651 | Y65: 5188399.507 | Z65: =+Y65/(Y65+Y66) -> 0.5465895114
B66: April | C66: =Input!C76 -> 33.73 | D66: =+$D$63 -> 0.6996285452 | E66: 23.598 | H66: =+$H$63 -> 1.096261513 | I66: =+$I$63 -> 1.078654763 | J66: Averages for Aug 2013- Sept 2016 | N66: off-peak | O66: =+O49-O65 -> 2513657.439 | P66: =+P49-P65 -> 14039.53731 | Q66: 44525.53433 | R66: 173.5216 | S66: 3.7389 | T66: 1173.487076 | U66: 34861.9737 | V66: 62455.0891 | W66: 955777.217 | X66: 677247.3871 | Y66: 4303914.925 | Z66: =1-Z65 -> 0.4534104886
B67: May | C67: =Input!C77 -> 33.63 | D67: =+$D$63 -> 0.6996285452 | E67: 23.529 | H67: =+$H$63 -> 1.096261513 | I67: =+$I$63 -> 1.078654763
B68: June | C68: =Input!C78 -> 37.35 | D68: =Input!F73 -> 0.6416216318 | E68: 23.965 | H68: =Input!F80 -> 0.9635989312 | I68: =Input!G80 -> 0.9133707489 | N68: Total on-peak | O68: =+O61+O65 -> 6210900.078 | P68: =+P61+P65 -> 67275.52905 | Q68: 114214.8126 | R68: 590.5535 | S68: 12.4138 | T68: 8117.090983 | U68: 41495.2117 | V68: 77348.8501 | W68: 3768084.621 | X68: 2578974.838 | Y68: 12867014 | Z68: =+Y68/(Y68+Y69) -> 0.5372538307
B69: July | C69: =Input!C79 -> 45.53 | D69: =+$D$68 -> 0.6416216318 | E69: 29.213 | H69: =+$H$68 -> 0.9635989312 | I69: =+$I$68 -> 0.9133707489 | N69: Total off-peak | O69: =+O62+O66 -> 5990695.57 | P69: =+P62+P66 -> 65780.33813 | Q69: 104030.8048 | R69: 692.4465 | S69: 14.5862 | T69: 7079.487918 | U69: 117472.7883 | V69: 218919.1499 | W69: 2648477.71 | X69: 1929422.478 | Y69: 11082585.36 | Z69: =1-Z68 -> 0.4627461693
B70: August | C70: =Input!C80 -> 41.6 | D70: =+$D$68 -> 0.6416216318 | E70: 26.691 | H70: =+$H$68 -> 0.9635989312 | I70: =+$I$68 -> 0.9133707489
B71: September | C71: =Input!C81 -> 35.39 | D71: =+$D$68 -> 0.6416216318 | E71: 22.707 | H71: =+$H$68 -> 0.9635989312 | I71: =+$I$68 -> 0.9133707489
B72: October | C72: =Input!C82 -> 33.72 | D72: =+$D$63 -> 0.6996285452 | E72: 23.591 | H72: =+$H$63 -> 1.096261513 | I72: =+$I$63 -> 1.078654763
B73: November | C73: =Input!C83 -> 34.02 | D73: =+$D$63 -> 0.6996285452 | E73: 23.801 | H73: =+$H$63 -> 1.096261513 | I73: =+$I$63 -> 1.078654763
B74: December | C74: =Input!C84 -> 38 | D74: =+$D$63 -> 0.6996285452 | E74: 26.586 | H74: =+$H$63 -> 1.096261513 | I74: =+$I$63 -> 1.078654763
A77: Table #6 | B77: Losses | C77: =+C7 -> RS | D77: =+D7 -> RHS | E77: RLM | F77: WH | G77: WHS | H77: HS | I77: PSAL | J77: BPL | K77: GLP | L77: LPL-S | P77: Loss Type | Q77: Percentage | R77: Source
B78: from meter to bulk system (includes Delivery & PJM EHV losses) | P78: Delivery Losses | Q78: =Input!C89 -> 0.075377 | R78: Tariff (Result of 2000 Loss Study)
B79: Loss Factors = | C79: =1-((1-$Q$78)*(1-$Q$79)) -> 0.0804624265 | D79: =+$C79 -> 0.0804624265 | E79: =+$C79 -> 0.0804624265 | F79: 0.0804624265 | G79: 0.0804624265 | H79: 0.0804624265 | I79: 0.0804624265 | J79: 0.0804624265 | K79: 0.0804624265 | L79: 0.0804624265 | P79: EHV Losses | Q79: =Input!C90 -> 0.0055 | R79: PJM
B80: Expansion Factor = | C80: =ROUND(1/(1-C79),6) -> 1.087503 | D80: =ROUND(1/(1-D79),6) -> 1.087503 | E80: 1.087503 | F80: 1.087503 | G80: 1.087503 | H80: 1.087503 | I80: 1.087503 | J80: 1.087503 | K80: 1.087503 | L80: 1.087503 | P80: Marginal Loss Deration Factor | Q80: =+Input!C91 -> 0.01217556523 | R80: NERA
B81: 1 / Expansion Factor = | C81: =1/C80 -> 0.9195376932 | D81: =1/D80 -> 0.9195376932 | E81: 0.9195376932 | F81: 0.9195376932 | G81: 0.9195376932 | H81: 0.9195376932 | I81: 0.9195376932 | J81: 0.9195376932 | K81: 0.9195376932 | L81: 0.9195376932 | P81: Marginal Loss Factor | Q81: =ROUND(1-((1-Q80)/(1-Q79)),7) -> 0.0067125
B83: from meter to transmission node (includes Delivery less mean hourly PJM marginal losses)
B84: Loss Factors = | C84: =1-((1-$Q$78)/((1-$Q$80)/(1-$Q$79))) -> 0.06912854032 | D84: =+$C84 -> 0.06912854032 | E84: =+$C84 -> 0.06912854032 | F84: 0.06912854032 | G84: 0.06912854032 | H84: 0.06912854032 | I84: 0.06912854032 | J84: 0.06912854032 | K84: 0.06912854032 | L84: 0.06912854032
B85: Expansion Factor = | C85: =ROUND(1/(1-C84),6) -> 1.074262 | D85: =+$C$85 -> 1.074262 | E85: =+$C$85 -> 1.074262 | F85: 1.074262 | G85: 1.074262 | H85: 1.074262 | I85: 1.074262 | J85: 1.074262 | K85: 1.074262 | L85: 1.074262
B86: 1 / Expansion Factor = | C86: =1/C85 -> 0.9308716123 | D86: =1/D85 -> 0.9308716123 | E86: 0.9308716123 | F86: 0.9308716123 | G86: 0.9308716123 | H86: 0.9308716123 | I86: 0.9308716123 | J86: 0.9308716123 | K86: 0.9308716123 | L86: 0.9308716123
A89: Table #7 | B89: Summary of Average BGS Energy Only Unit Costs @ customer - PJM Time Periods
B90: based on Forwards prices corrected for congestion & all losses - PJM time periods
B91: in $/MWh
C92: =+C7 -> RS | D92: =+D7 -> RHS | E92: RLM | F92: WH | G92: WHS | H92: HS | I92: PSAL | J92: BPL | K92: GLP | L92: LPL-S
B94: Summer - all hrs | C94: =(SUMPRODUCT(C14:C17,C50:C53,$C68:$C71,$H68:$H71)*C80+SUMPRODUCT(O14:O17,C50:C53,$E68:$E71,$I68:$I71)*C80)/SUM(C50:C53) -> 34.61076475 | D94: 34.69914285 | E94: 34.89805274 | F94: 33.11829794 | G94: 32.70044683 | H94: 36.1470886 | I94: 28.81752504 | J94: 28.86520959 | K94: 35.57434054 | L94: 35.18986802
B95: PJM on pk | C95: =(SUMPRODUCT(C14:C17,C50:C53,$C68:$C71,$H68:$H71)*C80)/SUMPRODUCT(C14:C17,C50:C53) -> 42.6637466 | D95: 42.44632687 | E95: 42.62338262 | F95: 41.78960244 | G95: 41.39588913 | H95: 42.02883449 | I95: 41.51988835 | J95: 41.59492732 | K95: 42.25325765 | L95: 42.18735521
B96: PJM off pk | C96: =(SUMPRODUCT(O14:O17,C50:C53,$E68:$E71,$I68:$I71)*C80)/SUMPRODUCT(O14:O17,C50:C53) -> 25.82195958 | D96: 25.71906057 | E96: 25.78676301 | F96: 25.39862935 | G96: 25.11620898 | H96: 25.45887817 | I96: 25.38122154 | J96: 25.42512096 | K96: 25.64140457 | L96: 25.61976319
B98: Winter - all hrs | C98: =(SUMPRODUCT(C9:C13,C45:C49,$C63:$C67,$H63:$H67)*C80+SUMPRODUCT(O9:O13,C45:C49,$E63:$E67,$I63:$I67)*C80+SUMPRODUCT(C18:C20,C54:C56,$C72:$C74,$H72:$H74)*C80+SUMPRODUCT(O18:O20,C54:C56,$E72:$E74,$I72:$I74)*C80)/SUM(C45:C49,C54:C56) -> 40.33093302 | D98: 42.06466041 | E98: 40.2622754 | F98: 39.59736084 | G98: 40.00411863 | H98: 42.37063774 | I98: 36.93351821 | J98: 37.11656368 | K98: 41.08583046 | L98: 40.88496498
B99: PJM on pk | C99: =(SUMPRODUCT(C9:C13,C45:C49,$C63:$C67,$H63:$H67)*C80+SUMPRODUCT(C18:C20,C54:C56,$C72:$C74,$H72:$H74)*C80)/(SUMPRODUCT(C9:C13,C45:C49)+SUMPRODUCT(C18:C20,C54:C56)) -> 47.7707953 | D99: 49.78013853 | E99: 47.50151832 | F99: 47.57240771 | G99: 48.02358674 | H99: 49.8804817 | I99: 48.09294263 | J99: 48.37599018 | K99: 47.18503441 | L99: 47.16525052
B100: PJM off pk | C100: =(SUMPRODUCT(O9:O13,C45:C49,$E63:$E67,$I63:$I67)*C80+SUMPRODUCT(O18:O20,C54:C56,$E72:$E74,$I72:$I74)*C80)/(SUMPRODUCT(O9:O13,C45:C49)+SUMPRODUCT(O18:O20,C54:C56)) -> 32.91134526 | D100: 34.45939257 | E100: 32.75588291 | F100: 32.89558306 | G100: 33.23747756 | H100: 34.76078671 | I100: 32.60215004 | J100: 32.7649695 | K100: 32.63030646 | L100: 32.59565437
B102: Annual | C102: =(C94*SUM(C50:C53)+C98*SUM(C45:C49,C54:C56))/C57 -> 37.86642793 | D102: 40.38661722 | E102: 37.87716618 | F102: 37.94098311 | G102: 38.11057409 | H102: 41.01674048 | I102: 34.672172 | J102: 34.90706189 | K102: 39.04392655 | L102: 38.85941223
B104: System Total | C104: =SUMPRODUCT(C102:L102,C57:L57)/SUM(C57:L57) -> 38.3271186
A107: Table #8 | B107: Summary of Average BGS Energy Only Costs @ customer - PJM Time Periods
B108: based on Forwards prices corrected for congestion & all losses
B109: in $1000
C110: =+C7 -> RS | D110: =+D7 -> RHS | E110: RLM | F110: WH | G110: WHS | H110: HS | I110: PSAL | J110: BPL | K110: GLP | L110: LPL-S
B112: Summer - all hrs | C112: =SUM(C50:C53)*C94/1000 -> 181948.6081 | D112: 1051.847166 | E112: 3386.477554 | F112: 10.86280172 | G112: 0.2289031278 | H112: 119.4996795 | I112: 1276.414637 | J112: 2289.963672 | K112: 84567.90267 | L112: 56426.38866
B113: PJM on pk | C113: =SUMPRODUCT(C50:C53,C14:C17)*C95/1000 -> 117041.0473 | D113: 690.7634553 | E113: 2238.308152 | F113: 6.455590921 | G113: 0.1349961341 | H113: 89.62401501 | I113: 391.575159 | J113: 702.0354772 | K113: 60060.43237 | L113: 39075.47098
B114: PJM off pk | C114: =SUMPRODUCT(C50:C53,O14:O17)*C96/1000 -> 64907.56079 | D114: 361.0837105 | E114: 1148.169402 | F114: 4.407210803 | G114: 0.09390699376 | H114: 29.8756645 | I114: 884.8394777 | J114: 1587.928195 | K114: 24507.4703 | L114: 17350.91768
B116: Winter - all hrs | C116: =SUM(C45:C49,C54:C56)*C98/1000 -> 280082.2342 | D116: 4321.829211 | E116: 4880.047962 | F116: 37.8154796 | G116: 0.8000823727 | H116: 503.8144535 | I116: 4235.351201 | J116: 8051.881741 | K116: 165959.8857 | L116: 118767.2812
B117: PJM on pk | C117: =(SUMPRODUCT(C45:C49,C9:C13)+SUMPRODUCT(C54:C56,C18:C20))*C99/1000 -> 165648.2318 | D117: 2538.872644 | E117: 2930.900291 | F117: 20.74514245 | G117: 0.4395454824 | H117: 298.5172179 | I117: 1542.061029 | J117: 2925.341561 | K117: 110726.5499 | L117: 77951.8147
B118: PJM off pk | C118: =+(SUMPRODUCT(C45:C49,O9:O13)+SUMPRODUCT(C54:C56,O18:O20))*C100/1000 -> 114434.0024 | D118: 1782.956567 | E118: 1949.147671 | F118: 17.07033715 | G118: 0.3605368903 | H118: 205.2972356 | I118: 2693.290172 | J118: 5126.54018 | K118: 55233.33584 | L118: 40815.46647
B120: Annual | C120: =+C112+C116 -> 462030.8423 | D120: =+D112+D116 -> 5373.676377 | E120: 8266.525516 | F120: 48.67828132 | G120: 1.0289855 | H120: 623.314133 | I120: 5511.765838 | J120: 10341.84541 | K120: 250527.7884 | L120: 175193.6698
B122: System Total | C122: =SUM(C120:L120) -> 917919.135
A125: Table #9 | B125: Summary of Average BGS Energy Only Unit Costs @ customer - PSE&G Time Periods | Q125: MWhs in PSE&G time periods | T125: MWhs in PJM time periods | W125: Difference in MWhs | Z125: Check on total $ recovered
B126: based on Forwards prices corrected for congestion & all losses - PSE&G billing time periods | W126: (PJM - PSE&G) | Z126: PSE&G time periods | AC126: PJM time periods (Table #8)
B127: in $/MWh
C128: =+C7 -> RS | D128: =+D7 -> RHS | E128: RLM | F128: WH | G128: WHS | H128: HS | I128: PSAL | J128: BPL | K128: GLP | L128: LPL-S | Q128: =+E128 -> RLM | R128: =+L128 -> LPL-S | T128: =+E128 -> RLM | U128: =+L128 -> LPL-S | W128: =+E128 -> RLM | X128: =+L128 -> LPL-S | Z128: =+E128 -> RLM | AA128: =+L128 -> LPL-S | AC128: =+E128 -> RLM | AD128: =+L128 -> LPL-S
B130: Summer - all hrs | C130: =+C112/SUM(C50:C53)*1000 -> 34.61076475 | D130: 34.69914285 | E130: 34.89805274 | F130: 33.11829794 | G130: 32.70044683 | H130: 36.1470886 | I130: 28.81752504 | J130: 28.86520959 | K130: 35.57434054 | L130: 35.18986802
B131: PSE&G On pk | E131: =+(E113*1000-W131*AVERAGE(E$95,E$96))/Q131 -> 43.73049472 | L131: =+(L113*1000-X131*AVERAGE(L$95,L$96))/R131 -> 43.26841399 | Q131: =SUMPRODUCT(E50:E53,E32:E35) -> 46410.1153 | R131: =SUMPRODUCT(L50:L53,L32:L35) -> 819313.7994 | T131: =SUMPRODUCT(E50:E53,E14:E17) -> 52513.6208 | U131: =SUMPRODUCT(L50:L53,L14:L17) -> 926236.5651 | W131: =+T131-Q131 -> 6103.505493 | X131: =+U131-R131 -> 106922.7657 | Z131: =+E131*Q131/1000 -> 2029.537302 | AA131: =+L131*R131/1000 -> 35450.40866
B132: PSE&G Off pk | E132: =+(E114*1000-W132*AVERAGE(E$95,E$96))/Q132 -> 26.80161931 | L132: =+(L114*1000-X132*AVERAGE(L$95,L$96))/R132 -> 26.74927109 | Q132: =SUMPRODUCT(E50:E53,Q32:Q35) -> 50629.03982 | R132: =SUMPRODUCT(L50:L53,X32:X35) -> 784170.1529 | T132: =SUMPRODUCT(E50:E53,Q14:Q17) -> 44525.53433 | U132: =SUMPRODUCT(L50:L53,X14:X17) -> 677247.3871 | W132: =+T132-Q132 -> -6103.505493 | X132: =+U132-R132 -> -106922.7657 | Z132: =+E132*Q132/1000 -> 1356.940251 | AA132: =+L132*R132/1000 -> 20975.98
Z133: =+Z132+Z131 -> 3386.477554 | AA133: =+AA132+AA131 -> 56426.38866 | AC133: =+E112 -> 3386.477554 | AD133: =+L112 -> 56426.38866
B134: Winter - all hrs | C134: =+C116/SUM(C45:C49,C54:C56)*1000 -> 40.33093302 | D134: 42.06466041 | E134: 40.2622754 | F134: 39.59736084 | G134: 40.00411863 | H134: 42.37063774 | I134: 36.93351821 | J134: 37.11656368 | K134: 41.08583046 | L134: 40.88496498
B135: PSE&G On pk | E135: =+(E117*1000-W135*AVERAGE(E$99,E$100))/Q135 -> 48.78756348 | L135: =+(L117*1000-X135*AVERAGE(L$99,L$100))/R135 -> 48.2580785 | Q135: =SUMPRODUCT(E45:E49,E27:E31)+SUMPRODUCT(E54:E56,E36:E38) -> 52537.11096 | R135: =SUMPRODUCT(L45:L49,L27:L31)+SUMPRODUCT(L54:L56,L36:L38) -> 1437145.142 | T135: =SUMPRODUCT(E45:E49,E9:E13)+SUMPRODUCT(E54:E56,E18:E20) -> 61701.19177 | U135: =SUMPRODUCT(L45:L49,L9:L13)+SUMPRODUCT(L54:L56,L18:L20) -> 1652738.273 | W135: =+T135-Q135 -> 9164.080806 | X135: =+U135-R135 -> 215593.1308 | Z135: =+E135*Q135/1000 -> 2563.157636 | AA135: =+L135*R135/1000 -> 69353.8631
B136: PSE&G Off pk | E136: =+(E118*1000-W136*AVERAGE(E$99,E$100))/Q136 -> 33.73980217 | L136: =+(L118*1000-X136*AVERAGE(L$99,L$100))/R136 -> 33.66568191 | Q136: =SUMPRODUCT(E45:E49,Q27:Q31)+SUMPRODUCT(E54:E56,Q36:Q38) -> 68669.35125 | R136: =SUMPRODUCT(L45:L49,X27:X31)+SUMPRODUCT(L54:L56,X36:X38) -> 1467768.222 | T136: =SUMPRODUCT(E45:E49,Q9:Q13)+SUMPRODUCT(E54:E56,Q18:Q20) -> 59505.27044 | U136: =SUMPRODUCT(L45:L49,X9:X13)+SUMPRODUCT(L54:L56,X18:X20) -> 1252175.091 | W136: =+T136-Q136 -> -9164.080806 | X136: =+U136-R136 -> -215593.1308 | Z136: =+E136*Q136/1000 -> 2316.890326 | AA136: =+L136*R136/1000 -> 49413.41807
Z137: =+Z136+Z135 -> 4880.047962 | AA137: =+AA136+AA135 -> 118767.2812 | AC137: =+E116 -> 4880.047962 | AD137: =+L116 -> 118767.2812
B138: Annual Average | C138: =(C130*SUM(C50:C53)+C134*SUM(C45:C49,C54:C56))/C57 -> 37.86642793 | D138: 40.38661722 | E138: 37.87716618 | F138: 37.94098311 | G138: 38.11057409 | H138: 41.01674048 | I138: 34.672172 | J138: 34.90706189 | K138: 39.04392655 | L138: 38.85941223
B139: System Average | C139: =+C122/SUM(C57:L57)*1000 -> 38.3271186
A142: Table #10 | B142: Generation & Transmission Obligations and Costs and Other Adjustments | L142: Adj for PLS
B143: obligations - Peak Load shares eff 6/1/17, scaling factors eff 1/1/17, Transmission Loads eff 1/1/17; costs are market estimates | L143: > 500 kW
B144: in MW | C144: =+C7 -> RS | D144: =+D7 -> RHS | E144: RLM | F144: WH | G144: WHS | H144: HS | I144: PSAL | J144: BPL | K144: GLP | L144: LPL-S | AD144: RS | AE144: RHS | AF144: RLM | AG144: WH | AH144: WHS | AI144: HS | AJ144: PSAL | AK144: BPL | AL144: GLP | AM144: LPL-S
R145: NITS Rate Weighted Average Calculation | AC145: Generation Peak Load Share | AD145: =Input!C101 -> 3620.243859 | AE145: =Input!D101 -> 24.05457965 | AF145: =Input!E101 -> 69.43465747 | AG145: =Input!F101 -> 0 | AH145: =Input!G101 -> 0 | AI145: =Input!H101 -> 2.785340347 | AJ145: =Input!I101 -> 0 | AK145: =Input!J101 -> 0 | AL145: =Input!K101 -> 1790.210282 | AM145: =Input!L101 -> 1402.650002
T146: Tranches | U146: NITS Rate | AC146: Tranmsission Obligation | AD146: =Input!C102 -> 3892.643385 | AE146: =Input!D102 -> 25.48041293 | AF146: =Input!E102 -> 73.12374372 | AG146: =Input!F102 -> 0 | AH146: =Input!G102 -> 0 | AI146: =Input!H102 -> 2.828513823 | AJ146: =Input!I102 -> 0 | AK146: =Input!J102 -> 0 | AL146: =Input!K102 -> 1779.280575 | AM146: =Input!L102 -> 1379.101995
B147: Gen Obl - MW | C147: =ROUND(AD145*$AD$148*$AD$149,1) -> 4212.6 | D147: =ROUND(AE145*$AD$148*$AD$149,1) -> 28 | E147: 80.8 | F147: 0 | G147: 0 | H147: 3.2 | I147: 0 | J147: 0 | K147: 2083.1 | L147: =ROUND(AM145*$AD$148*$AD$149*(1-AE45),1) -> 1047.9 | R147: =Input!C108 -> 2015 | S147: NITS Rate | T147: =Input!D108 -> 29 | U147: =Input!E108 -> 72688.29 | V147: =U147/$T$150*T147 -> 24799.53424
R148: =Input!C109 -> 2016 | S148: NITS Rate | T148: =Input!D109 -> 28 | U148: =Input!E109 -> 82516.44 | V148: =U148/$T$150*T148 -> 27181.88612 | AC148: Final Zonal RPM Scaling Factor | AD148: =Input!C104 -> 1.062463382
B149: Trans Obl - MW | C149: =ROUND(AD146,1) -> 3892.6 | D149: =ROUND(AE146,1) -> 25.5 | E149: 73.1 | F149: 0 | G149: 0 | H149: 2.8 | I149: 0 | J149: 0 | K149: 1779.3 | L149: =ROUND(AM146*(1-AF45),1) -> 885.5 | R149: =Input!C110 -> 2017 | S149: NITS Rate | T149: =Input!D110 -> 28 | U149: =Input!E110 -> 91224.18 | V149: =U149/$T$150*T149 -> 30050.31812 | X149: =+Input!B105 -> PJM June 1, 2016 (through May 31, 2017) Forecast Pool Requirement | AD149: =Input!C105 -> 1.0952
T150: =SUM(T147:T149) -> 85 | V150: =ROUND(SUM(V147:V149),2) -> 82031.74
B151: # of Months and Days used in this analysis
D152: # of summer days = | E152: 122 | G152: # of summer months = | H152: 4
D153: # of winter days = | E153: 243 | G153: # of winter months = | H153: 8
G154: total # months = | H154: =+H152+H153 -> 12
B155: Transmission Cost | C155: year round = | D155: =V150 -> 82031.74 | E155: per MW-yr
D157: Base Capacity | E157: Incremental RPM Capacity | F157: Total Capacity
B158: Generation Capacity cost | C158: summer = | D158: =Input!E113 -> 178.9594853 | E158: =SUM(auction_results_and_rates!C13:C13)/SUM(auction_results_and_rates!C13:E13)*Input!E115 -> 10.61058824 | F158: =SUM(D158:E158) -> 189.5700735 | G158: $/MW/day
C159: winter = | D159: =Input!E114 -> 178.9594853 | E159: =E158 -> 10.61058824 | F159: =SUM(D159:E159) -> 189.5700735 | G159: $/MW/day | Q159: Resulting average generation capacity cost =
P160: annual >> | Q160: =(F158*E152+F159*E153)/1000 -> 69.19307683 | R160: per kW/yr
C161: =+C7 -> RS | D161: =+D7 -> RHS
B162: % usage in Summer Blocks
B163: Block 1 (0-600 kWh/m) | C163: =ROUND(Q165/Q167,3) -> 0.647 | D163: =ROUND(R165/R167,3) -> 0.633 | F163: (based on W/N actuals used in settlement and final rate design of 2009 Rate Case, rounded to .1%) | P163: Blocking Percentages based on Annualized W/N Usaeg Used in 2009 Electric Rate Case Settlement
B164: Block 2 (>600 kWh/m) | C164: =1-C163 -> 0.353 | D164: =1-D163 -> 0.367 | Q164: RS | R164: RHS
P165: June - September (0-600) | Q165: 3626859 | R165: 27006
B166: Required summer inversion = | C166: =Input!C119 -> 0.8652 | D166: =Input!D119 -> 1.1569 | E166: ¢/kWh | F166: (same as 2003/2004 BGS blocking inversion) | P166: June - September (600+) | Q166: 1975894 | R166: 15667
P167: Total Summer Usage | Q167: =SUM(Q165:Q166) -> 5602753 | R167: =SUM(R165:R166) -> 42673
A168: Table #11 | B168: Ancillary Services & Renewable Power Cost
B169: Ancillary Services | D169: =+Input!D123 -> 2
B170: Renewable Power Cost | D170: =+Input!D124 -> 8.57
B171: Total AncillaryServices & Renewable Power Costs | D171: =SUM(D169:D170) -> 10.57 | E171: per MWh @ bulk system
A174: Table #12 | B174: Summary of Obligation Costs Expressed as $/MWh @ customer (for non-demand rates only)
C176: =+C7 -> RS | D176: RHS | E176: RLM | F176: WH | G176: WHS | H176: HS | I176: PSAL | J176: BPL
B178: Transmission Obl - all months | C178: =(+$D$155*C149*$H$154/12)/C57 -> 26.17008139 | D178: =(+$D$155*D149*$H$154/12)/D57 -> 15.72128621 | E178: =(+$D$155*E149*$H$154/12)/SUMPRODUCT(E27:E38,E45:E56) -> 60.60321669 | F178: =(+$D$155*F149*$H$154/12)/F57 -> 0 | G178: =(+$D$155*G149*$H$154/12)/G57 -> 0 | H178: =(+$D$155*H149*$H$154/12)/H57 -> 15.11451186 | I178: =(+$D$155*I149*$H$154/12)/I57 -> 0 | J178: =(+$D$155*J149*$H$154/12)/J57 -> 0
B180: Generation Obl -
B181: per annual MWh | C181: =((+$Q$160*C147*1000)/C57) -> 23.88890469 | D181: =((+$Q$160*D147*1000)/D57) -> 14.5608472 | E181: =(+$Q$160*E147*1000)/SUMPRODUCT(E45:E56,E27:E38) -> 56.50285328 | F181: =((+$Q$160*F147*1000)/F57) -> 0 | G181: =((+$Q$160*G147*1000)/G57) -> 0 | H181: =((+$Q$160*H147*1000)/H57) -> 14.5702429 | I181: =((+$Q$160*I147*1000)/I57) -> 0 | J181: =((+$Q$160*J147*1000)/J57) -> 0
B182: recovery per summer MWh | C182: =(C147*$F$158*$E$152)/SUM(C50:C53) -> 18.5328534 | D182: =(D147*$F$158*$E$152)/SUM(D50:D53) -> 21.36258217 | E182: =(E147*$F$158*$E$152)/SUMPRODUCT(E50:E53,E32:E35) -> 40.2650574 | F182: =(F147*$F$158*$E$152)/SUM(F50:F53) -> 0 | G182: =(G147*$F$158*$E$152)/SUM(G50:G53) -> 0 | H182: =(H147*$F$158*$E$152)/SUM(H50:H53) -> 22.38649851 | I182: =(I147*$F$158*$E$152)/SUM(I50:I53) -> 0 | J182: =(J147*$F$158*$E$152)/SUM(J50:J53) -> 0
B183: recovery per winter MWh | C183: =(C147*$F$159*$E$153)/SUM(C45:C49,C54:C56) -> 27.94338295 | D183: =(D147*$F$159*$E$153)/SUM(D45:D49,D54:D56) -> 12.55405046 | E183: =(E147*$F$159*$E$153)/(SUMPRODUCT(E45:E49,E27:E31)+SUMPRODUCT(E54:E56,E36:E38)) -> 70.846961 | F183: =(F147*$F$159*$E$153)/SUM(F45:F49,F54:F56) -> 0 | G183: =(G147*$F$159*$E$153)/SUM(G45:G49,G54:G56) -> 0 | H183: =(H147*$F$159*$E$153)/SUM(H45:H49,H54:H56) -> 12.39710869 | I183: =(I147*$F$159*$E$153)/SUM(I45:I49,I54:I56) -> 0 | J183: =(J147*$F$159*$E$153)/SUM(J45:J49,J54:J56) -> 0
E184: For RLM, per
E185: on-peak kWh only
A187: Table #13 | B187: Summary of BGS Unit Costs @ customer
B189: NON-DEMAND RATES
B190: includes energy, G&T obligations, and Ancillary Services - adjusted to billing time periods
B191: in $/MWh
C192: =+C7 -> RS | D192: RHS | E192: RLM | F192: WH | G192: WHS | H192: HS | I192: PSAL | J192: BPL
B194: Summer - all hrs | C194: =+C130+($D$171*C80)+C$178+C181 -> 96.16465753 | D194: =+D130+($D$171*D80)+D$178+D181 -> 76.47618297 | F194: =+F130+($D$171*F80)+F$178+F181 -> 44.61320465 | G194: =+G130+($D$171*G80)+G$178+G181 -> 44.19535354 | H194: =+H130+($D$171*H80)+H$178+H181 -> 77.32675007 | I194: =+I130+($D$171*I80)+I$178+I181 -> 40.31243175 | J194: =+J130+($D$171*J80)+J$178+J181 -> 40.3601163
B195: PSE&G On pk | E195: =+E131+($D$171*E80)+E$178+E181 -> 172.3314714
B196: PSE&G Off pk | E196: =+E132+($D$171*E80) -> 38.29652602
B197: Block 1 (0-600 kWh/m) | C197: =(C194*SUM(C50:C53)-C166*10*C164*SUM(C50:C53))/SUM(C50:C53) -> 93.11050153 | D197: =(D194*SUM(D50:D53)-D166*10*D164*SUM(D50:D53))/SUM(D50:D53) -> 72.23035997
B198: Block 2 (>600 kWh/m) | C198: =+C197+C166*10 -> 101.7625015 | D198: =+D197+D166*10 -> 83.79935997
B200: Winter - all hrs | C200: =+C134+($D$171*C80)+C$178+C181 -> 101.8848258 | D200: =+D134+($D$171*D80)+D$178+D181 -> 83.84170053 | F200: =+F134+($D$171*F80)+F$178+F181 -> 51.09226755 | G200: =+G134+($D$171*G80)+G$178+G181 -> 51.49902534 | H200: =+H134+($D$171*H80)+H$178+H181 -> 83.55029921 | I200: =+I134+($D$171*I80)+I$178+I181 -> 48.42842492 | J200: =+J134+($D$171*J80)+J$178+J181 -> 48.61147039
B201: PSE&G On pk | E201: =+E135+($D$171*E80)+E$178+E181 -> 177.3885402
B202: PSE&G Off pk | E202: =+E136+($D$171*E80) -> 45.23470888
B204: Annual -all hrs | C204: =+C138+($D$171*C80)+C$178+C181 -> 99.42032072 | D204: =+D138+($D$171*D80)+D$178+D181 -> 82.16365734 | E204: =((E195*SUMPRODUCT(E32:E35,E50:E53)+E196*SUMPRODUCT(Q32:Q35,E50:E53))+(E201*(SUMPRODUCT(E27:E31,E45:E49)+SUMPRODUCT(E36:E38,E54:E56))+E202*(SUMPRODUCT(Q27:Q31,E45:E49)+SUMPRODUCT(Q36:Q38,E54:E56))))/E57 -> 102.4651015 | F204: =+F138+($D$171*F80)+F$178+F181 -> 49.43588982 | G204: =+G138+($D$171*G80)+G$178+G181 -> 49.6054808 | H204: =+H138+($D$171*H80)+H$178+H181 -> 82.19640195 | I204: =+I138+($D$171*I80)+I$178+I181 -> 46.16707871 | J204: =+J138+($D$171*J80)+J$178+J181 -> 46.4019686
B206: DEMAND RATES
B207: includes energy and Ancillary Services, G&T obligations charged separately - adjusted to billing time periods
B208: in $/MWh
C209: =+K7 -> GLP | D209: =+L7 -> LPL-S | H209: PLUS: | I209: =+C209 -> GLP | J209: =+D209 -> LPL-S
B211: Summer - all hrs | C211: =+K130+($D$171*K80) -> 47.06924725 | D211: =+L130+($D$171*L$80) -> 46.68477473 | H211: Gen Cost
B212: PSE&G On pk | D212: =+L131+($D$171*L$80) -> 54.7633207 | H212: summer | I212: =+$F158*$E152/$H152/1000 -> 5.781887242 | J212: =+$F158*$E152/$H152/1000 -> 5.781887242 | K212: per kW of G obl /month
B213: PSE&G Off pk | D213: =+L132+($D$171*L$80) -> 38.2441778 | H213: winter | I213: =+$F159*$E153/$H153/1000 -> 5.758190982 | J213: =+$F159*$E153/$H153/1000 -> 5.758190982 | K213: per kW of G obl /month
H214: annual | I214: =($F$158*$E$152+$F$159*$E$153)/$H$154/1000 -> 5.766089736 | J214: =($F$158*$E$152+$F$159*$E$153)/$H$154/1000 -> 5.766089736 | K214: per kW of G obl /month
B215: Winter - all hrs | C215: =+K134+($D$171*K80) -> 52.58073717 | D215: =+L134+($D$171*L$80) -> 52.37987169
B216: PSE&G On pk | D216: =+L135+($D$171*L$80) -> 59.75298521 | H216: Trans cost
B217: PSE&G Off pk | D217: =+L136+($D$171*L$80) -> 45.16058862 | H217: all months | I217: =+$D155/1000/12 -> 6.835978333 | J217: =+$D155/1000/12 -> 6.835978333 | K217: per kW of T obl /month
B219: Annual - all hrs per MWh only | C219: =+K138+($D$171*K80) -> 50.53883326 | D219: =+L138+($D$171*L$80) -> 50.35431894
B221: Including T&G Obligation $
B222: Summer - all hrs | C222: =(C211*W49+((I214*$H152)*K147*1000)+(I217*$H152*K149*1000))/W49 -> 87.74640001 | D222: =(D211*X49+((J214*$H152)*L147*1000)+(J217*$H152*L149*1000))/X49 -> 76.8579342 | F222: Note: Obligation $ included in On pk costs
B223: PSE&G On pk | D223: =(D212*X50+((J214*$H152)*L147*1000)+(J217*$H152*L149*1000))/X50 -> 113.8153921
B224: PSE&G Off pk | D224: =+D213 -> 38.2441778
B226: Winter - all hrs | C226: =(C215*W45+((I214*$H153)*K147*1000)+(I217*$H153*K149*1000))/W45 -> 100.4589782 | D226: =(D215*X45+((J214*$H153)*L147*1000)+(J217*$H153*L149*1000))/X45 -> 85.6904534
B227: PSE&G On pk | D227: =(D216*X46+((J214*$H153)*L147*1000)+(J217*$H153*L149*1000))/X46 -> 127.0839396
B228: PSE&G Off pk | D228: =+D217 -> 45.16058862
B230: Annual - including T&G Obl $ | C230: =(C219*K57+((I214*$H152+I214*$H153)*K147*1000)+(I217*$H154*K149*1000))/K57 -> 95.74920578 | D230: =(D219*L57+((J214*$H152+J214*$H153)*L147*1000)+(J217*$H154*L149*1000))/L57 -> 82.54902602
B232: ALL RATES
B233: Grand Total Cost in $1000 = | C233: =(+SUMPRODUCT(C204:J204,C57:J57)+SUMPRODUCT(C230:D230,K57:L57))/1000 -> 2255326.399
C234: All-In Average cost @ customer = | D234: =+C233/SUM(C57:L57)*1000 -> 94.16969217 | E234: per MWh at customer (per customer metered MWh)
C235: All-In Average costs @ transmission nodes = | D235: =+C233/SUMPRODUCT(C57:L57,C85:L85)*1000 -> 87.65989318 | E235: per MWh at transmission nodes (per metered MWh at transmission node)
A238: Table #14 | B238: Ratio of BGS Unit Costs @ customer to All-In Average Cost @ transmission nodes - rounded to 3 decimal places, unit obligation $ rounded to 4 decimal places
B240: NON-DEMAND RATES
B241: includes energy, G&T obligations, and Ancillary Services - adjusted to billing time periods
C243: =+C7 -> RS | D243: RHS | E243: RLM | F243: WH | G243: WHS | H243: HS | I243: PSAL | J243: BPL
B245: Summer - all hrs | F245: =ROUND(+F194/$D$235,3) -> 0.509 | G245: =ROUND(+G194/$D$235,3) -> 0.504 | H245: =ROUND(+H194/$D$235,3) -> 0.882 | I245: =ROUND(+I194/$D$235,3) -> 0.46 | J245: =ROUND(+J194/$D$235,3) -> 0.46
B246: PSE&G On pk | E246: =ROUND(+E195/$D$235,3) -> 1.966 | J246: Use weighted average
B247: PSE&G Off pk | E247: =ROUND(+E196/$D$235,3) -> 0.437 | J247: for all streetlighting = | K247: =ROUND((I245*U49+J245*V49)/(U49+V49),3) -> 0.46
B249: All usage Multiplier | C249: =ROUND(+C194/$D$235,3) -> 1.097 | D249: =ROUND(+D194/$D$235,3) -> 0.872
B250: Constant (in $/MWh) | C250: =ROUND(+C197-C194,3) -> -3.054 | D250: =ROUND(D197-D194,3) -> -4.246 | E250: for Block 1 (0-600 kWh/m) usage
... 76 more rows

Sheet auction_results_and_rates
B1: Calculation of June 2017 to May 2018 BGS-RSCP Rates
B2: Illustrative Purposes Only
B3: NJ Sales & Use Tax (SUT) excluded
A5: Table A | B5: Auction Results | M5: Line Designation | N5: Incremental RPM cost $/MWh | O5: 2015 Auction | P5: 2016 Auction | Q5: 2017 Auction
A6: line # | B6: Specific BGS-FP Auction >> | C6: remaining portion of 36 month bid - 2015 auction | D6: remaining portion of 36 month bid - 2016 auction | E6: 36 month bid - 2017 auction | G6: Notes: | M6: A | N6: Incremental Capacity Cost | O6: =+bid_factors!$E$158 -> 10.61058824 | P6: No adder required as data known prior to Feb. 2016 auction | Q6: No adder required as data known prior to Feb. 2016 auction
M7: B | N7: Total Generation Obligation | O7: =SUM(bid_factors!$C$147:$L$147) -> 7455.6
A8: 1 | B8: Winning Bid - in $/MWh | C8: =Input!C136 -> 99.54 | D8: =Input!D136 -> 96.38 | E8: =ROUND(IF(Input!E138="yes",Input!$E$136,IF(LEFT(Input!B2,6)="Rebase",Input!E136,(bid_factors!D235*(1+#REF!)*SUM(C20:C21)/1000-SUM(C26:D26))/(E$13/E$14/1000*(E16*$C20+E17*$C21)))),2) -> 96.38 | G8: Winning Bid - 2017 Illustrative Purposes Only | M8: C | N8: Days in Year | O8: 365
A9: 1A | B9: Incremental RPM Cost - in $/MWh | C9: =ROUND(O17,2) -> 3.29 | G9: Based upon 2nd Incremental auction results - Illustrative Purposes Only | M9: D = A * B * C | N9: Total Incremental Cost | O9: =+O6*O7*O8 -> 28874530.1
B10: Total - in $/MWh | C10: =+C8+C9 -> 102.83 | D10: =+D8+D9 -> 96.38 | E10: =+E8+E9 -> 96.38 | G10: = line 1 + line 2 | M10: E | N10: Eligible Tranches | O10: =+C13 -> 29
M11: F | N11: Total Inc. Adder Tranches | O11: =SUM($C$13) -> 29
B12: (includes all payments, including impact of PJM marginal losses) | M12: G = E / F | N12: Eligibility % | O12: =+O10/O11 -> 1
A13: 2 | B13: # of Tranches for Bid | C13: =Input!C137 -> 29 | D13: =Input!D137 -> 28 | E13: =Input!E137 -> 28 | G13: from then current Bid | M13: H = D * G | N13: Allocated Period Cost | O13: =+O9*O12 -> 28874530.1
A14: 3 | B14: Total # of Tranches | C14: 85 | D14: 85 | E14: 85 | G14: from then current Bid | M14: I | N14: Total Tranches | O14: =SUM($C$13:$E$13) -> 85
B15: Payment Factors | M15: J | N15: Total MWhs | O15: =SUM(bid_factors!$C$354) -> 25728144.51
A16: 4 | B16: Summer | C16: =Input!C140 -> 1 | D16: =Input!D140 -> 1 | E16: =IF(LEFT(Input!$B$2,6)="rebase",Input!E140,bid_factors!L316) -> 1 | M16: K = E / I * J | N16: Allocated MWhs | O16: =+O10/O14*O15 -> 8777837.537
A17: 5 | B17: Winter | C17: =Input!C141 -> 1 | D17: =Input!D141 -> 1 | E17: =IF(LEFT(Input!$B$2,6)="rebase",Input!E141,bid_factors!L317) -> 1 | M17: L = H / K | N17: Incremental RPM Cost | O17: =ROUND(+O13/O16,2) -> 3.29
B19: Applicable Customer Usage @ transmission nodes - in MWh
A20: 6 | B20: Summer MWh | C20: =+bid_factors!C352 -> 10197232.69 | G20: from Table #17 of the current Bid Factor Spreadsheet
A21: 7 | B21: Winter MWh | C21: =+bid_factors!C353 -> 15530911.82
B23: Total Payment to Suppliers - in $1000
A24: 8 | B24: Summer | C24: =+C$8*C$13/C$14*C16*$C20/1000+C$9*C$13/C$14*$C20/1000 -> 357751.3139 | D24: =+D$8*D$13/D$14*D16*$C20/1000+D$9*D$13/D$14*$C20/1000 -> 323748.9414 | E24: 323748.9414 | G24: = (1) * (2)/(3) * (4) * (6) + (1A) * (2)/(3) * (6)
A25: 9 | B25: Winter | C25: =+C$8*C$13/C$14*C17*$C21/1000+C$9*C$13/C$14*$C21/1000 -> 544873.7201 | D25: =+D$8*D$13/D$14*D17*$C21/1000+D$9*D$13/D$14*$C21/1000 -> 493086.3514 | E25: 493086.3514 | G25: = (1) * (2)/(3) * (5) * (7) + (1A) * (2)/(3) * (7)
A26: 10 | B26: Total | C26: =+C25+C24 -> 902625.034 | D26: =+D25+D24 -> 816835.2928 | E26: =+E25+E24 -> 816835.2928 | G26: Note: $ reflect total payment
B28: Average Payment to Suppliers - in $/MWh
A29: 11 | B29: Summer | C29: =ROUND(+SUM(C24:E24)/C20*1000,3) -> 98.581 | G29: = sum(line 8) / (6) - rounded to 3 decimal places
A30: 12 | B30: Winter | C30: =ROUND(+SUM(C25:E25)/C21*1000,3) -> 98.581 | G30: = sum(line 9) / (7) - rounded to 3 decimal places
A32: 13 | B32: Total weighted average | C32: =ROUND(+SUM(C26:E26)/(C20+C21)*1000,3) -> 98.581 | D32: <<< used in calculation of | G32: = sum(line 10) / [ (6) + (7)]
D33: Customer Rates | G33: rounded to 3 decimal places
B35: Reconciliation of amounts - in $1000
A36: 14 | B36: Weighted Average * Total MWh = | C36: =(C32*(C21+C20))/1000 -> 2536306.214 | G36: = (13) * [(6)+(7)] / 1000
A37: 15 | B37: Total Payment to Suppliers = | C37: =SUM(C26:E26) -> 2536295.62 | G37: = sum (line 10)
A38: 16 | B38: Difference = | C38: =+C36-C37 -> 10.59394186 | G38: = line (14) - line (15)
A41: Table B | B41: Ratio of BGS Unit Costs @ customer to All-In Average Cost @ transmission nodes | G41: from Table #14 of the bid factor spreadsheet ---
G42: rounded to 3 decimal places, unit obligation $ rounded to 4 decimal places
B43: NON-DEMAND RATES
B44: includes energy, G&T obligations, and Ancillary Services - adjusted to billing time periods
C46: =+bid_factors!C243 -> RS | D46: =+bid_factors!D243 -> RHS | E46: =+bid_factors!E243 -> RLM | F46: =+bid_factors!F243 -> WH | G46: =+bid_factors!G243 -> WHS | H46: =+bid_factors!H243 -> HS | I46: =+bid_factors!I243 -> PSAL | J46: =+bid_factors!J243 -> BPL
B48: Summer - all hrs | F48: =+bid_factors!F245 -> 0.509 | G48: =+bid_factors!G245 -> 0.504 | H48: =+bid_factors!H245 -> 0.882 | I48: =+bid_factors!I245 -> 0.46 | J48: =+bid_factors!J245 -> 0.46
B49: PSE&G On pk | E49: =+bid_factors!E246 -> 1.966 | J49: Use weighted average
B50: PSE&G Off pk | E50: =+bid_factors!E247 -> 0.437 | J50: for all streetlighting = | K50: =+bid_factors!K247 -> 0.46
B52: All usage Multiplier | C52: =+bid_factors!C249 -> 1.097 | D52: =+bid_factors!D249 -> 0.872
B53: Constant (in $/MWh) | C53: =+bid_factors!C250 -> -3.054 | D53: =+bid_factors!D250 -> -4.246 | E53: for Block 1 (0-600 kWh/m) usage
B54: Constant (in $/MWh) | C54: =+bid_factors!C251 -> 5.598 | D54: =+bid_factors!D251 -> 7.323 | E54: for Block 2 (>600 kWh/m) usage
B58: Winter - all hrs | C58: =+bid_factors!C255 -> 1.162 | D58: =+bid_factors!D255 -> 0.956 | F58: =+bid_factors!F255 -> 0.583 | G58: =+bid_factors!G255 -> 0.587 | H58: =+bid_factors!H255 -> 0.953 | I58: =+bid_factors!I255 -> 0.552 | J58: =+bid_factors!J255 -> 0.555
B59: PSE&G On pk | E59: =+bid_factors!E256 -> 2.024 | J59: Use weighted average
B60: PSE&G Off pk | E60: =+bid_factors!E257 -> 0.516 | J60: for all streetlighting = | K60: =+bid_factors!K257 -> 0.554
B62: Annual - all hrs | C62: =+bid_factors!C259 -> 1.134 | D62: =+bid_factors!D259 -> 0.937 | E62: =+bid_factors!E259 -> 1.169 | F62: =+bid_factors!F259 -> 0.564 | G62: =+bid_factors!G259 -> 0.566 | H62: =+bid_factors!H259 -> 0.938 | I62: =+bid_factors!I259 -> 0.527 | J62: =+bid_factors!J259 -> 0.529
B65: DEMAND RATES
B66: includes energy and Ancillary Services, G&T obligations charged separately - adjusted to billing time periods
C68: =+bid_factors!C265 -> GLP | D68: =+bid_factors!D265 -> GLP | E68: =+bid_factors!E265 -> LPL-S | F68: =+bid_factors!F265 -> LPL-S | H68: PLUS: | I68: =+C68 -> GLP | J68: =+E68 -> LPL-S
C69: Multiplier | D69: Constant (in $/MWh) | E69: Multiplier | F69: Constant (in $/MWh)
B70: Summer - all hrs | C70: =+bid_factors!C267 -> 1.001 | D70: =+bid_factors!D267 -> -40.677 | H70: Gen Cost
B71: PSE&G On pk | E71: =+bid_factors!E268 -> 1.298 | F71: =+bid_factors!F268 -> -59.052 | H71: summer | I71: =+bid_factors!I$270 -> 5.7661 | J71: =+bid_factors!J$270 -> 5.7661 | K71: per kW of G obl /month
B72: PSE&G Off pk | E72: =+bid_factors!E269 -> 0.436 | F72: =+bid_factors!F269 -> 0 | H72: winter | I72: =+bid_factors!I$270 -> 5.7661 | J72: =+bid_factors!J$270 -> 5.7661 | K72: per kW of G obl /month
B74: Winter - all hrs | C74: =+bid_factors!C271 -> 1.146 | D74: =+bid_factors!D271 -> -47.878 | H74: Trans cost
B75: PSE&G On pk | E75: =+bid_factors!E272 -> 1.45 | F75: =+bid_factors!F272 -> -67.331 | H75: all months | I75: =+bid_factors!I273 -> 6.836 | J75: =+bid_factors!J273 -> 6.836 | K75: per kW of T obl /month
B76: PSE&G Off pk | E76: =+bid_factors!E273 -> 0.515 | F76: =+bid_factors!F273 -> 0
B78: Annual - including T&G Obl $ | C78: =+bid_factors!C275 -> 1.092 | E78: =+bid_factors!E275 -> 0.942
A81: Table C | B81: Preliminary Resulting BGS Rates (in cents per kWh) - equal to bid factors times weighted average bid price
B82: rounded to 4 decimal places
B84: NON-DEMAND RATES -----------------------------------------------------------------------------------------------------------------------------------------------------------------------
B85: includes energy, G&T obligations, and Ancillary Services - adjusted to billing time periods
C87: =+C46 -> RS | D87: =+D46 -> RHS | E87: RLM | F87: WH | G87: WHS | H87: HS | I87: PSAL | J87: BPL
B89: Summer - all hrs | F89: =ROUND(($C$32*F48)/10,4) -> 5.0178 | G89: =ROUND(($C$32*G48)/10,4) -> 4.9685 | H89: =ROUND(($C$32*H48)/10,4) -> 8.6948 | I89: =ROUND(($C$32*K50)/10,4) -> 4.5347 | J89: =+I89 -> 4.5347
B90: PSE&G On pk | E90: =ROUND(($C$32*E49)/10,4) -> 19.381
B91: PSE&G Off pk | E91: =ROUND(($C$32*E50/10),4) -> 4.308
B93: for Block 1 (0-600 kWh/m) usage | C93: =ROUND((+$C$32*C52+C53)/10,4) -> 10.5089 | D93: =ROUND((+$C$32*D52+D53)/10,4) -> 8.1717
B94: for Block 2 (>600 kWh/m) usage | C94: =ROUND((+$C$32*C52+C54)/10,4) -> 11.3741 | D94: =ROUND((+$C$32*D52+D54)/10,4) -> 9.3286
B96: Winter - all hrs | C96: =ROUND(($C$32*C58)/10,4) -> 11.4551 | D96: =ROUND(($C$32*D58)/10,4) -> 9.4243 | F96: =ROUND(($C$32*F58)/10,4) -> 5.7473 | G96: =ROUND(($C$32*G58)/10,4) -> 5.7867 | H96: =ROUND(($C$32*H58)/10,4) -> 9.3948 | I96: =ROUND(($C$32*K60)/10,4) -> 5.4614 | J96: =+I96 -> 5.4614
B97: PSE&G On pk | E97: =ROUND(($C$32*E59)/10,4) -> 19.9528
B98: PSE&G Off pk | E98: =ROUND(($C$32*E60)/10,4) -> 5.0868
B102: DEMAND RATES --------------------------------------------------------------------------------------------------------------------------------------------------------------------------------
B103: includes energy and Ancillary Services, G&T obligations charged separately - adjusted to billing time periods
C105: =+C68 -> GLP | E105: =+E68 -> LPL-S | H105: PLUS: | I105: =+C105 -> GLP | J105: =+E105 -> LPL-S
B107: Summer - all hrs | C107: =ROUND(($C$32*C70+D70)/10,4) -> 5.8003 | H107: Gen Cost
B108: PSE&G On pk | E108: =ROUND(($C$32*E71+F71)/10,4) -> 6.8906 | H108: summer | I108: =+I71 -> 5.7661 | J108: =+J71 -> 5.7661 | K108: per kW of G obl /month
B109: PSE&G Off pk | E109: =ROUND(($C$32*E72+F72)/10,4) -> 4.2981 | H109: winter | I109: =+I72 -> 5.7661 | J109: =+J72 -> 5.7661 | K109: per kW of G obl /month
B111: Winter - all hrs | C111: =ROUND(($C$32*C74+D74)/10,4) -> 6.5096 | H111: Trans cost
B112: PSE&G On pk | E112: =ROUND(($C$32*E75+F75)/10,4) -> 7.5611 | H112: all months | I112: =+I75 -> 6.836 | J112: =+J75 -> 6.836 | K112: per kW of T obl /month
B113: PSE&G Off pk | E113: =ROUND(($C$32*E76+F76)/10,4) -> 5.0769
A117: Table D | B117: Revenue Recovery Calculations - Reconciliation of seasonal Customer Revenue and Supplier Payments, based on actual anticipated revenues and payments
C119: RS | D119: RHS | E119: RLM | F119: WH | G119: WHS | H119: HS | I119: PSAL | J119: BPL
B120: Total Preliminary Rate Revenue - in $1000
B121: Summer | C121: =+C93/100*bid_factors!O53+auction_results_and_rates!C94/100*bid_factors!O54 -> 568508.0019 | D121: =+D93/100*bid_factors!P53+auction_results_and_rates!D94/100*bid_factors!P54 -> 2605.820902 | E121: =+E90/100*bid_factors!Q50+E91/100*bid_factors!Q51 -> 11175.84348 | F121: =+F89/100*bid_factors!R49 -> 16.458384 | G121: =+G89/100*bid_factors!S49 -> 0.347795 | H121: =+H89/100*bid_factors!T49 -> 287.443845 | I121: =+I89/100*bid_factors!U49 -> 2008.554671 | J121: =+J89/100*bid_factors!V49 -> 3597.513551
B122: Winter | C122: =+C96/100*bid_factors!O45 -> 795510.9789 | D122: =+D96/100*bid_factors!P45 -> 9682.763308 | E122: =+E97/100*bid_factors!Q46+auction_results_and_rates!E98/100*bid_factors!Q47 -> 13975.69723 | F122: =+F96/100*bid_factors!R45 -> 54.886715 | G122: =+G96/100*bid_factors!S45 -> 1.15734 | H122: =+H96/100*bid_factors!T45 -> 1117.102852 | I122: =+I96/100*bid_factors!U45 -> 6262.86045 | J122: =+J96/100*bid_factors!V45 -> 11847.68809
B123: Total | C123: =+C122+C121 -> 1364018.981 | D123: =+D122+D121 -> 12288.58421 | E123: 25151.54072 | F123: 71.345099 | G123: 1.505135 | H123: 1404.546697 | I123: 8271.415121 | J123: 15445.20164
C126: GLP | D126: GLP | F126: LPL-S | G126: LPL-S
C127: Energy $ | D127: Obligation $ | F127: Energy $ | G127: Obligation $
B129: Summer | C129: =+C107/100*bid_factors!W49 -> 137885.6778 | D129: =I108*bid_factors!K147*4+auction_results_and_rates!I112*bid_factors!K149*4 -> 96698.63084 | F129: =+E108/100*bid_factors!X50+auction_results_and_rates!E109/100*bid_factors!X51 -> 90160.054 | G129: =auction_results_and_rates!J108*bid_factors!L147*4+auction_results_and_rates!J112*bid_factors!L149*4 -> 48382.29676
B130: Winter | C130: =+C111/100*bid_factors!W45 -> 262945.2684 | D130: =auction_results_and_rates!I109*bid_factors!K147*8+auction_results_and_rates!I112*bid_factors!K149*8 -> 193397.2617 | F130: =+E112/100*bid_factors!X46+auction_results_and_rates!E113/100*bid_factors!X47 -> 183181.1062 | G130: =auction_results_and_rates!J109*bid_factors!L147*8+auction_results_and_rates!J112*bid_factors!L149*8 -> 96764.59352
B131: Total | C131: =+C130+C129 -> 400830.9462 | D131: =+D130+D129 -> 290095.8925 | F131: =+F130+F129 -> 273341.1602 | G131: =+G130+G129 -> 145146.8903
C134: Energy $ | D134: Obligation $ | E134: Total $
B135: Total Summer | C135: =SUM(C121:J121)+C129+F129 -> 816245.7163 | D135: =+D129+G129 -> 145080.9276 | E135: =+C135+D135 -> 961326.6439
B136: Total Winter | C136: =SUM(C122:J122)+C130+F130 -> 1284579.51 | D136: =+D130+G130 -> 290161.8552 | E136: =+C136+D136 -> 1574741.365
B137: Grand Total | C137: =+C136+C135 -> 2100825.226 | D137: =+D131+G131 -> 435242.7828 | E137: =+C137+D137 -> 2536068.009
B140: Total Supplier Payment - in $1000
B141: Summer | C141: =+C24+D24+E24 -> 1005249.197
B142: Winter | C142: =+C25+D25+E25 -> 1531046.423
B143: Total | C143: =+C142+C141 -> 2536295.62 | E143: kWh Rate
E144: Adjustment | F144: rounded to 5 decimal places
B145: Differences - in $1000 | E145: Factors
B146: Summer | C146: =+C141-E135 -> 43922.55272 | E146: =ROUND(1+(C146/C135),5) -> 1.05381
B147: Winter | C147: =+C142-E136 -> -43694.94177 | E147: =ROUND(1+(C147/C136),5) -> 0.96599
B148: Total | C148: =+C143-E137 -> 227.6109505
C150: Note: These differences are due to rounding and seasonal differences in Bidder Payments (which are based on prior
C151: wining bids and Seasonal Payment Factors) and current Rates (based on current seasonal market differentials)
A153: Table E | B153: Final Resulting BGS Rates from Auctions (in cents per kWh) - with preliminary kWh rates adjusted by the kWh Rate Adjustment Factor
B154: rounded to 4 decimal places
B156: NON-DEMAND RATES -----------------------------------------------------------------------------------------------------------------------------------------------------------------------
B157: includes energy, G&T obligations, and Ancillary Services - adjusted to billing time periods & adjustment to energy price
C159: =+C119 -> RS | D159: =+D119 -> RHS | E159: RLM | F159: WH | G159: WHS | H159: HS | I159: PSAL | J159: BPL
B161: Summer - all hrs | F161: =ROUND(+F89*$E$146,4) -> 5.2878 | G161: =ROUND(+G89*$E$146,4) -> 5.2359 | H161: =ROUND(+H89*$E$146,4) -> 9.1627 | I161: =ROUND(+I89*$E$146,4) -> 4.7787 | J161: =ROUND(+J89*$E$146,4) -> 4.7787
B162: PSE&G On pk | E162: =ROUND(+E90*$E$146,4) -> 20.4239
B163: PSE&G Off pk | E163: =ROUND(+E91*$E$146,4) -> 4.5398
B165: for Block 1 (0-600 kWh/m) usage | C165: =ROUND(+C93*$E$146,4) -> 11.0744 | D165: =ROUND(+D93*$E$146,4) -> 8.6114
B166: for Block 2 (>600 kWh/m) usage | C166: =ROUND(+C94*$E$146,4) -> 11.9861 | D166: =ROUND(+D94*$E$146,4) -> 9.8306
B168: Winter - all hrs | C168: =ROUND(+C96*$E$147,4) -> 11.0655 | D168: =ROUND(+D96*$E$147,4) -> 9.1038 | F168: =ROUND(+F96*$E$147,4) -> 5.5518 | G168: =ROUND(+G96*$E$147,4) -> 5.5899 | H168: =ROUND(+H96*$E$147,4) -> 9.0753 | I168: =ROUND(+I96*$E$147,4) -> 5.2757 | J168: =ROUND(+J96*$E$147,4) -> 5.2757
B169: PSE&G On pk | E169: =ROUND(+E97*$E$147,4) -> 19.2742
B170: PSE&G Off pk | E170: =ROUND(+E98*$E$147,4) -> 4.9138
B174: DEMAND RATES --------------------------------------------------------------------------------------------------------------------------------------------------------------------------------
B175: includes energy and Ancillary Services, G&T obligations charged separately - adjusted to billing time periods & adjustment to energy price
C177: =+C105 -> GLP | E177: =+E105 -> LPL-S | H177: PLUS: | I177: =+C177 -> GLP | J177: =+E177 -> LPL-S
B179: Summer - all hrs | C179: =ROUND(+C107*$E$146,4) -> 6.1124 | H179: Gen Cost
B180: PSE&G On pk | E180: =ROUND(+E108*$E$146,4) -> 7.2614 | H180: summer | I180: =+I108 -> 5.7661 | J180: =+J108 -> 5.7661
B181: PSE&G Off pk | E181: =ROUND(+E109*$E$146,4) -> 4.5294 | H181: winter | I181: =+I109 -> 5.7661 | J181: =+J109 -> 5.7661
B183: Winter - all hrs | C183: =ROUND(+C111*$E$147,4) -> 6.2882 | H183: Trans cost
B184: PSE&G On pk | E184: =ROUND(+E112*$E$147,4) -> 7.3039 | H184: all months | I184: =+I112 -> 6.836 | J184: =+J112 -> 6.836
B185: PSE&G Off pk | E185: =ROUND(+E113*$E$147,4) -> 4.9042
A189: Table F | B189: Spreadsheet Error Checking - Checking of seasonal Customer Revenue and Supplier Payments, based on final actual anticipated revenues and payments
C191: RS | D191: RHS | E191: RLM | F191: WH | G191: WHS | H191: HS | I191: PSAL | J191: BPL | K191: GLP | L191: LPL-S
B192: Total Rate Revenue - in $1000
B193: Summer | C193: =+C165/100*bid_factors!O53+auction_results_and_rates!C166/100*bid_factors!O54 -> 599099.2165 | D193: =+D165/100*bid_factors!P53+auction_results_and_rates!D166/100*bid_factors!P54 -> 2746.039564 | E193: =+E162/100*bid_factors!Q50+E163/100*bid_factors!Q51 -> 11777.21269 | F193: =+F161/100*bid_factors!R49 -> 17.343984 | G193: =+G161/100*bid_factors!S49 -> 0.366513 | H193: =+H161/100*bid_factors!T49 -> 302.9122831 | I193: =+I161/100*bid_factors!U49 -> 2116.629591 | J193: =+J161/100*bid_factors!V49 -> 3791.086071 | K193: =+C179/100*bid_factors!W49+I180*bid_factors!K147*4+auction_results_and_rates!I184*bid_factors!K149*4 -> 242003.6008 | L193: =+E180/100*bid_factors!X50+auction_results_and_rates!E181/100*bid_factors!X51+auction_results_and_rates!J180*bid_factors!L147*4+auction_results_and_rates!J184*bid_factors!L149*4 -> 143394.1519
B194: Winter | C194: =+C168/100*bid_factors!O45 -> 768454.8138 | D194: =+D168/100*bid_factors!P45 -> 9353.473532 | E194: =+E169/100*bid_factors!Q46+auction_results_and_rates!E170/100*bid_factors!Q47 -> 13500.38242 | F194: =+F168/100*bid_factors!R45 -> 53.01969 | G194: =+G168/100*bid_factors!S45 -> 1.11798 | H194: =+H168/100*bid_factors!T45 -> 1079.112223 | I194: =+I168/100*bid_factors!U45 -> 6049.908975 | J194: =+J168/100*bid_factors!V45 -> 11444.83979 | K194: =+C183/100*bid_factors!W45+auction_results_and_rates!I181*bid_factors!K147*8+auction_results_and_rates!I184*bid_factors!K149*8 -> 447399.418 | L194: =+E184/100*bid_factors!X46+auction_results_and_rates!E185/100*bid_factors!X47+auction_results_and_rates!J181*bid_factors!L147*8+auction_results_and_rates!J184*bid_factors!L149*8 -> 273714.5267
B195: Total | C195: =+C194+C193 -> 1367554.03 | D195: 12099.5131 | E195: 25277.59511 | F195: 70.363674 | G195: 1.484493 | H195: 1382.024506 | I195: 8166.538566 | J195: 15235.92587 | K195: 689403.0188 | L195: 417108.6786
B197: Total Summer | C197: =SUM(C193:L193) -> 1005248.56
B198: Total Winter | C198: =SUM(C194:L194) -> 1531050.613
B199: Grand Total | C199: =+C198+C197 -> 2536299.173
B202: Total Supplier Payment - in $1000
B203: Summer | C203: =+C24+D24+E24 -> 1005249.197
B204: Winter | C204: =+C25+D25+E25 -> 1531046.423
B205: Total | C205: =+C204+C203 -> 2536295.62
B207: Differences - in $1000 | E207: % difference
B208: Summer | C208: =+C197-C203 -> -0.636772063 | E208: =+C208/C197 -> -6.334473765e-07
B209: Winter | C209: =+C198-C204 -> 4.190136947 | E209: =+C209/C198 -> 2.736772326e-06
B210: Total | C210: =+C199-C205 -> 3.553364884 | E210: =+C210/C199 -> 1.401003841e-06
A213: DO NOT USE
A214: Table G | B214: Final Resulting BGS Rates with NITS Differential Adder (in cents per kWh) - with preliminary kWh rates adjusted by the kWh Rate Adjustment Factor
B215: rounded to 4 decimal places
B217: NON-DEMAND RATES -----------------------------------------------------------------------------------------------------------------------------------------------------------------------
B218: includes energy, G&T obligations, Ancillary Services, and NITS Differential Adder - adjusted to billing time periods & adjustment to energy price
C220: =C159 -> RS | D220: =D159 -> RHS | E220: RLM | F220: WH | G220: WHS | H220: HS | I220: PSAL | J220: BPL
B222: Summer - all hrs | F222: =ROUND(+F161+bid_factors!#REF!*100,4) ->  | G222: =ROUND(+G161+bid_factors!#REF!*100,4) ->  | H222: =ROUND(+H161+bid_factors!#REF!*100,4) ->  | I222: =ROUND(+I161+bid_factors!#REF!*100,4) ->  | J222: =ROUND(+J161+bid_factors!#REF!*100,4) -> 
B223: PSE&G On pk | E223: =ROUND(E162+bid_factors!#REF!*100,4) -> 
B224: PSE&G Off pk | E224: =ROUND(E163+bid_factors!#REF!*100,4) -> 
B226: for Block 1 (0-600 kWh/m) usage | C226: =ROUND(+C165+bid_factors!#REF!*100,4) ->  | D226: =ROUND(+D165+bid_factors!#REF!*100,4) -> 
B227: for Block 2 (>600 kWh/m) usage | C227: =ROUND(+C166+bid_factors!#REF!*100,4) ->  | D227: =ROUND(+D166+bid_factors!#REF!*100,4) -> 
B229: Winter - all hrs | C229: =ROUND(+C168+bid_factors!#REF!*100,4) ->  | D229: =ROUND(+D168+bid_factors!#REF!*100,4) ->  | F229: =ROUND(+F168+bid_factors!#REF!*100,4) ->  | G229: =ROUND(+G168+bid_factors!#REF!*100,4) ->  | H229: =ROUND(+H168+bid_factors!#REF!*100,4) ->  | I229: =ROUND(+I168+bid_factors!#REF!*100,4) ->  | J229: =ROUND(+J168+bid_factors!#REF!*100,4) -> 
B230: PSE&G On pk | E230: =ROUND(E169+bid_factors!#REF!*100,4) -> 
B231: PSE&G Off pk | E231: =ROUND(E170+bid_factors!#REF!*100,4) -> 
B235: DEMAND RATES --------------------------------------------------------------------------------------------------------------------------------------------------------------------------------
B236: includes energy and Ancillary Services, G&T obligations with NITS Differential Adder charged separately - adjusted to billing time periods & adjustment to energy price
C238: =C177 -> GLP | E238: =E177 -> LPL-S | H238: PLUS: | I238: =+C238 -> GLP | J238: =+E238 -> LPL-S
B240: Summer - all hrs | C240: =C179 -> 6.1124 | H240: Gen Cost
B241: PSE&G On pk | E241: =E180 -> 7.2614 | H241: summer | I241: =I180 -> 5.7661 | J241: =J180 -> 5.7661
B242: PSE&G Off pk | E242: =E181 -> 4.5294 | H242: winter | I242: =I181 -> 5.7661 | J242: =J181 -> 5.7661
B244: Winter - all hrs | C244: =C183 -> 6.2882 | H244: Trans cost
B245: PSE&G On pk | E245: =E184 -> 7.3039 | H245: all months | I245: =ROUND(+I184+bid_factors!#REF!,4) ->  | J245: =ROUND(+J184+bid_factors!#REF!,4) -> 
B246: PSE&G Off pk | E246: =E185 -> 4.9042
A251: Table H | B251: Spreadsheet Error Checking - Checking of seasonal Customer Revenue and Supplier Payments, based on final actual anticipated revenues and payments
C253: RS | D253: RHS | E253: RLM | F253: WH | G253: WHS | H253: HS | I253: PSAL | J253: BPL | K253: GLP | L253: LPL-S
B254: Total Rate Revenue - in $1000
B255: Summer | C255: =+C226/100*bid_factors!O53+auction_results_and_rates!C227/100*bid_factors!O54 ->  | D255: =+D226/100*bid_factors!P53+auction_results_and_rates!D227/100*bid_factors!P54 ->  | E255: =+E223/100*bid_factors!Q50+E224/100*bid_factors!Q51 ->  | F255: =+F222/100*bid_factors!R49 ->  | G255: =+G222/100*bid_factors!S49 ->  | H255: =+H222/100*bid_factors!T49 ->  | I255: =+I222/100*bid_factors!U49 ->  | J255: =+J222/100*bid_factors!V49 ->  | K255: =+C240/100*bid_factors!W49+I241*bid_factors!K147*4+auction_results_and_rates!I245*bid_factors!K149*4 ->  | L255: =+E241/100*bid_factors!X50+auction_results_and_rates!E242/100*bid_factors!X51+auction_results_and_rates!J241*bid_factors!L147*4+auction_results_and_rates!J245*bid_factors!L149*4 -> 
B256: Winter | C256: =+C229/100*bid_factors!O45 ->  | D256: =+D229/100*bid_factors!P45 ->  | E256: =+E230/100*bid_factors!Q46+auction_results_and_rates!E231/100*bid_factors!Q47 ->  | F256: =+F229/100*bid_factors!R45 ->  | G256: =+G229/100*bid_factors!S45 ->  | H256: =+H229/100*bid_factors!T45 ->  | I256: =+I229/100*bid_factors!U45 ->  | J256: =+J229/100*bid_factors!V45 ->  | K256: =+C244/100*bid_factors!W45+auction_results_and_rates!I242*bid_factors!K147*8+auction_results_and_rates!I245*bid_factors!K149*8 ->  | L256: =+E245/100*bid_factors!X46+auction_results_and_rates!E246/100*bid_factors!X47+auction_results_and_rates!J242*bid_factors!L147*8+auction_results_and_rates!J245*bid_factors!L149*8 -> 
B257: Total | C257: =+C256+C255 -> 
B259: Total Summer | C259: =SUM(C255:L255) -> 
B260: Total Winter | C260: =SUM(C256:L256) -> 
B261: Grand Total | C261: =+C260+C259 -> 
B264: Total Supplier Payment - in $1000
C265: BGS-FP Auction | D265: NITS Differential Adder | E265: Total
B266: Summer | C266: =+SUM(C24:E24) -> 1005249.197 | D266: =bid_factors!#REF! ->  | E266: =SUM(C266:D266) -> 
B267: Winter | C267: =+SUM(C25:E25) -> 1531046.423 | D267: =bid_factors!#REF! ->  | E267: =SUM(C267:D267) -> 
B268: Total | C268: =+C267+C266 -> 2536295.62 | D268: =+D267+D266 ->  | E268: =+E267+E266 -> 
B270: Differences - in $1000 | E270: % difference
B271: Summer | C271: =+C259-E266 ->  | E271: =+C271/C259 -> 
B272: Winter | C272: =+C260-E267 ->  | E272: =+C272/C260 -> 
B273: Total | C273: =+C261-E268 ->  | E273: =+C273/C261 -> 
